Workbook

Sheet Pension Inputs
M1: Annual Allowance Calculator Built by M&G | S1: Tax Year 2026/27
A2: No
H3: For conditional for year joined scheme | I3: Conditional for warnings | J3: Blanking full summary logic | M3: What tax year did individual first join a pension? | S3: Instructions for use
A4: 2008/09 | B4: 1 | H4: =IF($C$7>B4,1,0) -> 0 | J4: =IF(H4=0,B4,"") -> 1 | M4: (If a member prior to 2008/09 tax year select 2008/09). | Q4: 2008/09 | S4: Step 1 Input tax year first joined a pension scheme
A5: 2009/10 | B5: 2 | H5: 0 | J5: =IF(H5=0,B5,"") -> 2 | Q5: =IF('Carry Forward Full Workings'!Y20>0,"Pension Inputs have been entered for a year prior to scheme membership - please amend.","") ->  | S5: Step2: Calculate tapered AA if applicable using grey button on right hand side.
A6: 2010/11 | B6: 3 | H6: 0 | J6: 3 | S6: Step3: Input existing pension input amounts in white boxes. Inputs are required until there is 3 clear years with no AA excess
A7: 2011/12 | B7: 4 | C7: =VLOOKUP(Q4,A4:B23,2,FALSE) -> 1 | D7: Added to lookup to capture 2020/23 | H7: 0 | J7: 4 | O7: Total inputs for PIPs ending in Tax Year: | Q7: Existing Inputs
A8: 2012/13 | B8: 5 | H8: 0 | J8: 5 | O8: =A4 -> 2008/09 | P8: 0 | Q8: 0 | S8: 2008/09 to 2010/11 - Inputs are capped at £50,000 for Carry Forward calculations
A9: 2013/14 | B9: 6 | H9: 0 | J9: 6 | O9: =A5 -> 2009/10 | P9: 0 | Q9: 0
A10: 2014/15 | B10: 7 | H10: 0 | J10: 7 | O10: =A6 -> 2010/11 | P10: 0 | Q10: 0
A11: 2015/16 (pre alignment) | B11: 8 | H11: 0 | J11: 8 | O11: =A7 -> 2011/12 | AG11: Suicide Code
A12: 2015/16 (post alignment) | B12: 8.5 | H12: 0 | J12: 8.5 | O12: Inputs prior to 14/10/2010 | P12: 0 | Q12: 0 | S12: Straddling PIPs - if total inputs are less than or equal to £50,000 then put all in as post 14/10/2010. If total inputs are over £50,000 then you need to enter the pre and post 14/10/10 split of inputs. | AG12: =TODAY() -> 2026-04-22
A13: 2016/17 | B13: 9 | H13: 0 | I13: =IF('Tapered AA Calculations'!M42>0,IF(Q20<>'Tapered AA Calculations'!M42,1,0),0) -> 0 | J13: 9 | O13: Inputs on or after 14/10/2010 | P13: 0 | Q13: 0 | AG13: 2027-04-05
A14: 2017/18 | B14: 10 | H14: 0 | I14: =IF('Tapered AA Calculations'!T43>0,IF(Q21<>'Tapered AA Calculations'!T43,1,0),0) -> 0 | J14: 10 | O14: =A8 -> 2012/13 | P14: 0 | Q14: 0
A15: 2018/19 | B15: 11 | F15: 0 | H15: 0 | I15: =IF('Tapered AA Calculations'!AA43>0,IF(Q22<>'Tapered AA Calculations'!AA43,1,0),0) -> 0 | J15: 11 | O15: =A9 -> 2013/14 | P15: 0 | Q15: 0
A16: 2019/20 | B16: 12 | F16: 0 | H16: 0 | I16: =IF('Tapered AA Calculations'!AH43>0,IF(Q23<>'Tapered AA Calculations'!AH43,1,0),0) -> 0 | J16: 12 | O16: =A10 -> 2014/15 | P16: 0 | Q16: 0
A17: 2020/21 | B17: 13 | F17: 0 | H17: 0 | I17: =IF('Tapered AA Calculations'!AO43>0,IF(Q24<>'Tapered AA Calculations'!AO43,1,0),0) -> 0 | J17: 13 | O17: 2015/16
A18: 2021/22 | B18: 14 | H18: 0 | I18: =IF('Tapered AA Calculations'!AV43>0,IF(Q25<>'Tapered AA Calculations'!AV43,1,0),0) -> 0 | J18: 14 | O18: Inputs on or after 09/07/14 | P18: 0 | Q18: 0 | S18: Tapered Annual Allowance Details
A19: 2022/23 | B19: 15 | F19: 0 | H19: =IF($C$7>B19,1,0) -> 0 | I19: =IF('Tapered AA Calculations'!BC43>0,IF(Q26<>'Tapered AA Calculations'!BC43,1,0),0) -> 0 | J19: 15 | O19: Inputs on or after 09/07/15 | P19: 0 | Q19: 0
A20: 2023/24 | B20: 16 | F20: 0 | H20: =IF($C$7>B20,1,0) -> 0 | I20: =IF('Tapered AA Calculations'!BJ43>0,IF(Q27<>'Tapered AA Calculations'!BJ43,1,0),0) -> 0 | J20: 16 | O20: =A13 -> 2016/17 | P20: 0 | Q20: 0 | R20: 0 | S20: 0
A21: 2024/25 | B21: 17 | F21: 0 | H21: =IF($C$7>B21,1,0) -> 0 | I21: =IF('Tapered AA Calculations'!BQ43>0,IF(Q28<>'Tapered AA Calculations'!BQ43,1,0),0) -> 0 | J21: 17 | O21: =A14 -> 2017/18 | P21: 0 | Q21: 0 | R21: 0 | S21: 0
A22: 2025/26 | B22: 18 | F22: 0 | H22: =IF($C$7>B22,1,0) -> 0 | I22: =IF('Tapered AA Calculations'!BX43>0,IF(Q29<>'Tapered AA Calculations'!BX43,1,0),0) -> 0 | J22: 18 | O22: 2018/19 | P22: 0 | Q22: 0 | R22: 0 | S22: 0 | V22: Input the taper figures here if known - or select relevant tab(s) to calculate. Please only use these if you are not using the Tapered AA Calculations tab to work out the annual allowance.
A23: 2026/27 | B23: 19 | F23: 0 | H23: =IF($C$7>B23,1,0) -> 0 | I23: =IF('Tapered AA Calculations'!BX44>0,IF(Q30<>'Tapered AA Calculations'!BX44,1,0),0) -> 0 | J23: 19 | O23: 2019/20 | P23: 0 | Q23: 0 | R23: 0 | S23: 0
O24: 2020/21 | P24: 0 | Q24: 0 | R24: 0 | S24: 0
F25: 0 | O25: 2021/22 | P25: 0 | Q25: 0 | R25: 0 | S25: 0
F26: 0 | O26: 2022/23 | P26: 0 | Q26: 0 | R26: 0 | S26: 0
O27: 2023/24 | P27: 0 | Q27: 0 | R27: 0 | S27: 0
F28: 0 | O28: 2024/25 | P28: 0 | Q28: 0 | R28: 0 | S28: 0
O29: 2025/26 | P29: 0 | Q29: 0 | R29: 0 | S29: 0
F30: 0 | O30: 2026/27 | P30: 0 | Q30: 0 | R30: 0 | S30: 0
F31: 0
F32: 0
F33: 0 | Q33: Summary Information
F34: 0
F35: 0 | S35: Existing Inputs
Q36: Annual Allowance | T36: ='Carry Forward Full Workings'!W5 -> 60000
I37: Do not delete this as needed for blanking summary full logic | J37: =MIN(J4:J36) -> 1 | Q37: Total Inputs | T37: ='Carry Forward Full Workings'!W13 -> 0 | V37: =IF('Tapered AA Calculations'!CE42>0,IF('Tapered AA Calculations'!CE43>=0,IF(Q30='Tapered AA Calculations'!CE43,"","Pension inputs above do not equal pension inputs in the 2026/27 taper calculator"),""),"") -> 
Q38: Unused allowance from this year | T38: ='Carry Forward Full Workings'!W126 -> 60000
Q40: Carry Forward available from: | V40: =IF('Tapered AA Calculations'!M42>0,IF('Tapered AA Calculations'!M43>=0,IF(Q20='Tapered AA Calculations'!M43,"","Pension inputs above do not equal pension inputs in the 2016/17 taper calculator"),""),"") -> 
V41: =IF('Tapered AA Calculations'!T42>0,IF('Tapered AA Calculations'!T42>=0,IF(Q21='Tapered AA Calculations'!T43,"","Pension inputs above do not equal pension inputs in the 2017/18 taper calculator"),""),"") -> 
Q42: =O27 -> 2023/24 | S42: ='Carry Forward Full Workings'!W110 -> 60000 | V42: =IF('Tapered AA Calculations'!AA42>0,IF('Tapered AA Calculations'!AA43>=0,IF(Q22='Tapered AA Calculations'!AA43,"","Pension inputs above do not equal pension inputs in the 2018/19 taper calculator"),""),"") -> 
Q43: =O28 -> 2024/25 | S43: ='Carry Forward Full Workings'!W115 -> 60000 | V43: =IF('Tapered AA Calculations'!AH42>0,IF('Tapered AA Calculations'!AH43>=0,IF(Q23='Tapered AA Calculations'!AH43,"","Pension inputs above do not equal pension inputs in the 2019/20 taper calculator"),""),"") -> 
Q44: 2025/26 | S44: ='Carry Forward Full Workings'!W120 -> 60000 | T44: =SUM(S42:S44) -> 180000 | V44: =IF('Tapered AA Calculations'!AO42>0,IF('Tapered AA Calculations'!AO43>=0,IF(Q24='Tapered AA Calculations'!AO43,"","Pension inputs above do not equal pension inputs in the 2020/21 taper calculator"),""),"") -> 
V45: =IF('Tapered AA Calculations'!AV42>0,IF('Tapered AA Calculations'!AV43>=0,IF(Q25='Tapered AA Calculations'!AV43,"","Pension inputs above do not equal pension inputs in the 2021/22 taper calculator"),""),"") -> 
Q46: Maximum Allowance Remaining This Year | T46: =T44+T38 -> 240000 | V46: =IF('Tapered AA Calculations'!BC42>0,IF('Tapered AA Calculations'!BC43>=0,IF(Q26='Tapered AA Calculations'!BC43,"","Pension inputs above do not equal pension inputs in the 2022/23 taper calculator"),""),"") -> 
V47: =IF('Tapered AA Calculations'!BJ42>0,IF('Tapered AA Calculations'!BJ43>=0,IF(Q27='Tapered AA Calculations'!BJ43,"","Pension inputs above do not equal pension inputs in the 2023/24 taper calculator"),""),"") -> 
Q48: Chargeable Amount | T48: ='Carry Forward Full Workings'!W21 -> 0 | V48: =IF('Tapered AA Calculations'!BQ42>0,IF('Tapered AA Calculations'!BQ43>=0,IF(Q28='Tapered AA Calculations'!BQ43,"","Pension inputs above do not equal pension inputs in the 2024/25 taper calculator"),""),"") -> 
Q49: See Carry Forward Workings for summary or full calculations | V49: =IF('Tapered AA Calculations'!BX42>0,IF('Tapered AA Calculations'!BX43>=0,IF(Q29='Tapered AA Calculations'!BX43,"","Pension inputs above do not equal pension inputs in the 2025/26 taper calculator"),""),"") -> 
V51: =IF(SUM('Carry Forward Full Workings'!G21:T21)>0,"Please note there have been chargeable amounts in previous tax years","") -> 
M54: This tool is for UK financial advisers only.
M56: Important information about this tool
M58: This calculator is designed to give a general demonstration of how a client's pension contributions can determine any unused Annual Allowance; the client may be able to 'carry forward' unused allowance from the last three years to increase their limit for the current tax year. The Annual Allowance calculator takes in the details of the client's previous and expected contributions to their pension arrangements. It then works out if the client could be subject to an Annual Allowance charge; the amount of unused Annual Allowance including any carry forward opportunities. It should not be taken as offering advice or any recommendation. You should be satisfied that the information you have entered into the calculator is correct, for example this tool will assume that any pension contributions are valid. You should ensure that the outputs are correct for your client. The information in this calculator is based on our current understanding of legislation and HMRC practice as at 6th April 2025 all which is subject to change without notice. Please note that this tool will cease to operate at the end of the tax year displayed above. If you require a copy for your records we suggest you print a PDF of the pages required. Every care has been taken as to its accuracy, but it must be appreciated that neither M&G nor its representatives can accept any responsibility for loss, however caused, suffered by any person who has acted or refrained from acting as a result of material contained in this tool.

Sheet Carry Forward Summary Workings
A1: Annual Allowance Calculator - Summary Workings Built by M&G
B3: ='Pension Inputs'!A20 -> 2023/24 | C3: ='Pension Inputs'!A21 -> 2024/25 | D3: ='Pension Inputs'!A22 -> 2025/26 | E3: ='Pension Inputs'!A23 -> 2026/27
A5: Annual Allowance | B5: ='Carry Forward Full Workings'!T7 -> 60000 | C5: ='Carry Forward Full Workings'!U7 -> 60000 | D5: ='Carry Forward Full Workings'!V7 -> 60000 | E5: ='Carry Forward Full Workings'!W7 -> 60000
A7: Carry Forward | B7: ='Carry Forward Full Workings'!T9 -> 120000 | C7: ='Carry Forward Full Workings'!U9 -> 140000 | D7: ='Carry Forward Full Workings'!V9 -> 160000 | E7: ='Carry Forward Full Workings'!W9 -> 180000
A9: Maximum Allowance | B9: =SUM(B5:B7) -> 180000 | C9: =SUM(C5:C7) -> 200000 | D9: =SUM(D5:D7) -> 220000 | E9: =SUM(E5:E7) -> 240000
A11: Total Inputs | B11: ='Carry Forward Full Workings'!T13 -> 0 | C11: ='Carry Forward Full Workings'!U13 -> 0 | D11: ='Carry Forward Full Workings'!V13 -> 0 | E11: ='Carry Forward Full Workings'!W13 -> 0
A13: Unused | B13: =MAX(0,B5-B11) -> 60000 | C13: =MAX(0,C5-C11) -> 60000 | D13: 60000 | E13: 60000
A15: Excess over standard Annual Allowance | B15: ='Carry Forward Full Workings'!T16 -> 0 | C15: ='Carry Forward Full Workings'!U16 -> 0 | D15: ='Carry Forward Full Workings'!V16 -> 0 | E15: ='Carry Forward Full Workings'!W16 -> 0
A16: =IF((B15+C15+D15)>0,"As there is an excess in the previous three years it's recommended to check the full workings","") -> 
A17: Excessed used by
A18: =C3 -> 2024/25 | B18: ='Carry Forward Full Workings'!U109 -> 0
A19: =D3 -> 2025/26 | B19: ='Carry Forward Full Workings'!V109 -> 0 | C19: ='Carry Forward Full Workings'!V114 -> 0
A20: =E3 -> 2026/27 | B20: ='Carry Forward Full Workings'!W109 -> 0 | C20: ='Carry Forward Full Workings'!W114 -> 0 | D20: ='Carry Forward Full Workings'!W119 -> 0
A21: Unused | B21: =MAX(0,B5-B11-B18-B19-B20) -> 60000 | C21: =MAX(0,C5-C11-C18-C19-C20) -> 60000 | D21: =MAX(0,D5-D11-D18-D19-D20) -> 60000 | E21: =MAX(0,E5-E11-E18-E19-E20) -> 60000 | G21: Check conditional formatting, for unused from three years ago and chargable amount warning.
A22: =IF(B21>0,"Please note - the unused allowance from three tax years ago will not be available next tax year","") -> Please note - the unused allowance from three tax years ago will not be available next tax year
A24: Total Allowance Remaining This Year | E24: =MAX(0,E9-E11) -> 240000
A26: Chargeable Amount | B26: =IF('Carry Forward Full Workings'!T21>0,'Carry Forward Full Workings'!T21,"") ->  | C26: =IF('Carry Forward Full Workings'!U21>0,'Carry Forward Full Workings'!U21,"") ->  | D26: =IF('Carry Forward Full Workings'!V21>0,'Carry Forward Full Workings'!V21,"") ->  | E26: =IF('Carry Forward Full Workings'!W21>0,'Carry Forward Full Workings'!W21,"") -> 
A27: =IF(SUM('Carry Forward Full Workings'!G21:R21)>0,"Please note there have been chargeable amounts in previous tax years","") -> 

Sheet Carry Forward Full Workings
A1: Needed for blanking | C1: Annual Allowance Calculator - Full Workings Built by M&G | H1: ='Pension Inputs'!S1 -> Tax Year 2026/27
A2: ='Pension Inputs'!J37 -> 1 | K2: 2015/16
D3: 1 | E3: 2 | F3: 3 | G3: 4 | H3: 5 | I3: 6 | J3: 7 | K3: 8 | L3: 8.5 | M3: 9 | N3: 10 | O3: 11 | P3: 12 | Q3: 13 | R3: 14 | S3: 15 | T3: 16 | U3: 17 | V3: 18 | W3: 19 | Y3: ='Pension Inputs'!C7 -> 1 | Z3: Inputted tax year joined scheme
D4: ='Pension Inputs'!$A4 -> 2008/09 | E4: ='Pension Inputs'!$A5 -> 2009/10 | F4: ='Pension Inputs'!$A6 -> 2010/11 | G4: ='Pension Inputs'!$A7 -> 2011/12 | H4: ='Pension Inputs'!$A8 -> 2012/13 | I4: ='Pension Inputs'!$A9 -> 2013/14 | J4: ='Pension Inputs'!$A10 -> 2014/15 | K4: Pre Alignment | L4: Post Alignment | M4: ='Pension Inputs'!$A13 -> 2016/17 | N4: ='Pension Inputs'!$A14 -> 2017/18 | O4: ='Pension Inputs'!$A15 -> 2018/19 | P4: ='Pension Inputs'!$A16 -> 2019/20 | Q4: ='Pension Inputs'!$A17 -> 2020/21 | R4: ='Pension Inputs'!$A18 -> 2021/22 | S4: ='Pension Inputs'!$A19 -> 2022/23 | T4: ='Pension Inputs'!$A20 -> 2023/24 | U4: ='Pension Inputs'!$A21 -> 2024/25 | V4: ='Pension Inputs'!$A22 -> 2025/26 | W4: ='Pension Inputs'!$A23 -> 2026/27
C5: Annual Allowance Limit | D5: 50000 | E5: 50000 | F5: 50000 | G5: 50000 | H5: 50000 | I5: 50000 | J5: 40000 | K5: 80000 | L5: 40000 | M5: =IF('Pension Inputs'!S20>0,'Pension Inputs'!S20,'Tapered AA Calculations'!L35) -> 40000 | N5: =IF('Pension Inputs'!S21>0,'Pension Inputs'!S21,'Tapered AA Calculations'!S35) -> 40000 | O5: =IF('Pension Inputs'!S22>0,'Pension Inputs'!S22,'Tapered AA Calculations'!Z35) -> 40000 | P5: =IF('Pension Inputs'!S23>0,'Pension Inputs'!S23,'Tapered AA Calculations'!AG35) -> 40000 | Q5: =IF('Pension Inputs'!S24>0,'Pension Inputs'!S24,'Tapered AA Calculations'!AN35) -> 40000 | R5: =IF('Pension Inputs'!S25>0,'Pension Inputs'!S25,'Tapered AA Calculations'!AU35) -> 40000 | S5: =IF('Pension Inputs'!S26>0,'Pension Inputs'!S26,'Tapered AA Calculations'!BB35) -> 40000 | T5: =IF('Pension Inputs'!S27>0,'Pension Inputs'!S27,'Tapered AA Calculations'!BI35) -> 60000 | U5: =IF('Pension Inputs'!S28>0,'Pension Inputs'!S28,'Tapered AA Calculations'!BP35) -> 60000 | V5: =IF('Pension Inputs'!S29>0,'Pension Inputs'!S29,'Tapered AA Calculations'!BW35) -> 60000 | W5: =IF('Pension Inputs'!S30>0,'Pension Inputs'!S30,'Tapered AA Calculations'!CD35) -> 60000
C7: Annual Allowance | D7: =IF(D3<'Pension Inputs'!$C$7,0,D5) -> 50000 | E7: =IF(E3<'Pension Inputs'!$C$7,0,E5) -> 50000 | F7: =IF(F3<'Pension Inputs'!$C$7,0,F5) -> 50000 | G7: =IF(G3<'Pension Inputs'!$C$7,0,G5) -> 50000 | H7: =IF(H3<'Pension Inputs'!$C$7,0,H5) -> 50000 | I7: =IF(I3<'Pension Inputs'!$C$7,0,I5) -> 50000 | J7: =IF(J3<'Pension Inputs'!$C$7,0,J5) -> 40000 | K7: =IF(K3<'Pension Inputs'!$C$7,0,K5) -> 80000 | L7: =IF(Y3=L3,L5,0) -> 0 | M7: =IF(M3<'Pension Inputs'!$C$7,0,M5) -> 40000 | N7: =IF(N3<'Pension Inputs'!$C$7,0,N5) -> 40000 | O7: =IF(O3<'Pension Inputs'!$C$7,0,O5) -> 40000 | P7: =IF(P3<'Pension Inputs'!$C$7,0,P5) -> 40000 | Q7: =IF(Q3<'Pension Inputs'!$C$7,0,Q5) -> 40000 | R7: =IF(R3<'Pension Inputs'!$C$7,0,R5) -> 40000 | S7: =IF(S3<'Pension Inputs'!$C$7,0,S5) -> 40000 | T7: =IF(T3<'Pension Inputs'!$C$7,0,T5) -> 60000 | U7: =IF(U3<'Pension Inputs'!$C$7,0,U5) -> 60000 | V7: =IF(V3<'Pension Inputs'!$C$7,0,V5) -> 60000 | W7: =IF(W3<'Pension Inputs'!$C$7,0,W5) -> 60000
C9: Carry Forward | D9: 0 | E9: =E28 -> 50000 | F9: =F28+F33 -> 100000 | G9: =G28+G33+G38 -> 150000 | H9: =H33+H38+H43 -> 150000 | I9: =I38+I43+I48 -> 150000 | J9: =J43+J48+J53 -> 150000 | K9: =K48+K53+K58 -> 140000 | L9: =L48+L53+L58+L63 -> 180000 | M9: =M53+M58+M63+M70 -> 130000 | N9: =N58+N63+N68+N73 -> 120000 | O9: =O78+O73+O68+O63 -> 120000 | P9: =P83+P78+P73 -> 120000 | Q9: =Q88+Q83+Q78 -> 120000 | R9: =R93+R88+R83 -> 120000 | S9: =S98+S93+S88 -> 120000 | T9: =T103+T98+T93 -> 120000 | U9: =U98+U103+U108 -> 140000 | V9: =V103+V108+V113 -> 160000 | W9: =W108+W113+W118 -> 180000
C11: Maximum Allowance | D11: N/A | E11: N/A | F11: N/A | G11: =SUM(G7:G9) -> 200000 | H11: 200000 | I11: 200000 | J11: 190000 | K11: 220000 | L11: =SUM(L7:L9) -> 180000 | M11: 170000 | N11: 160000 | O11: 160000 | P11: 160000 | Q11: =SUM(Q7:Q9) -> 160000 | R11: 160000 | S11: 160000 | T11: 180000 | U11: 200000 | V11: 220000 | W11: 240000
C13: Total Inputs (08/09, 09/10 & 10/11 inputs capped at £50,000) | D13: =IF(D3<Y3,0,MIN(50000,'Pension Inputs'!Q8)) -> 0 | E13: =IF(E3<Y3,0,MIN(50000,'Pension Inputs'!Q9)) -> 0 | F13: =IF(F3<Y3,0,MIN(50000,'Pension Inputs'!Q10)) -> 0 | G13: =IF(G3<Y3,0,('Pension Inputs'!Q12+'Pension Inputs'!Q13)) -> 0 | H13: =IF(H3<Y3,0,'Pension Inputs'!$Q14) -> 0 | I13: =IF(I3<Y3,0,'Pension Inputs'!$Q15) -> 0 | J13: =IF(J3<Y3,0,'Pension Inputs'!$Q16) -> 0 | K13: =IF(K3<Y3,0,'Pension Inputs'!Q18) -> 0 | L13: =IF(L3<Y3,0,'Pension Inputs'!Q19) -> 0 | M13: =IF(M3<Y3,0,'Pension Inputs'!$Q20) -> 0 | N13: =IF(N3<Y3,0,'Pension Inputs'!$Q21) -> 0 | O13: =IF(O3<Y3,0,'Pension Inputs'!$Q22) -> 0 | P13: =IF(P3<Y3,0,'Pension Inputs'!$Q23) -> 0 | Q13: =IF(Q3<$Y$3,0,'Pension Inputs'!$Q24) -> 0 | R13: =IF(R3<$Y$3,0,'Pension Inputs'!$Q25) -> 0 | S13: =IF(S3<$Y$3,0,'Pension Inputs'!$Q26) -> 0 | T13: =IF(T3<$Y$3,0,'Pension Inputs'!$Q27) -> 0 | U13: =IF(U3<$Y$3,0,'Pension Inputs'!$Q28) -> 0 | V13: =IF(V3<$Y$3,0,'Pension Inputs'!$Q29) -> 0 | W13: =IF(W3<$Y$3,0,'Pension Inputs'!$Q30) -> 0
D15: =MIN(0,D7-D13) -> 0 | E15: =MIN(0,E7-E13) -> 0 | F15: =MIN(0,F7-F13) -> 0 | G15: =H138*-1 -> 0 | H15: =MIN(0,H7-H13) -> 0 | I15: 0 | J15: 0 | K15: 0 | L15: 0 | M15: 0 | N15: 0 | O15: 0 | P15: =MIN(0,P7-P13) -> 0 | Q15: 0 | R15: 0 | S15: 0 | T15: 0 | U15: 0 | V15: 0 | W15: 0
C16: Excess over standard Annual Allowance | D16: =D15*-1 -> 0 | E16: 0 | F16: 0 | G16: =G15*-1 -> 0 | H16: 0 | I16: 0 | J16: 0 | K16: 0 | L16: =L15*-1 -> 0 | M16: 0 | N16: 0 | O16: 0 | P16: 0 | Q16: =Q15*-1 -> 0 | R16: 0 | S16: 0 | T16: 0 | U16: 0 | V16: =V15*-1 -> 0 | W16: 0
C18: Chargeable Amount logic | G18: =IF(G21>0,1,0) -> 0 | H18: =IF(H21>0,1,0) -> 0 | I18: 0 | J18: 0 | K18: 0 | L18: 0 | M18: 0 | N18: 0 | O18: 0 | P18: 0 | Q18: 0 | R18: 0 | S18: 0 | T18: 0 | U18: 0 | V18: =IF(V21>0,1,0) -> 0 | W18: 0
C19: In scheme (based on inputs) | D19: =IF(D3>=$Y$3,"YES",IF(SUM($D$13:D13)>0,"YES","NO")) -> YES | E19: =IF(E3>=$Y$3,"YES",IF(SUM($D$13:E13)>0,"YES","NO")) -> YES | F19: =IF(F3>=$Y$3,"YES",IF(SUM($D$13:F13)>0,"YES","NO")) -> YES | G19: =IF(G3>=$Y$3,"YES",IF(SUM($D$13:G13)>0,"YES","NO")) -> YES | H19: =IF(H3>=$Y$3,"YES",IF(SUM($D$13:H13)>0,"YES","NO")) -> YES | I19: =IF(I3>=$Y$3,"YES",IF(SUM($D$13:I13)>0,"YES","NO")) -> YES | J19: =IF(J3>=$Y$3,"YES",IF(SUM($D$13:J13)>0,"YES","NO")) -> YES | K19: =IF(K3>=$Y$3,"YES",IF(SUM($D$13:K13)>0,"YES","NO")) -> YES | L19: =IF(L3>=$Y$3,"YES",IF(SUM($D$13:L13)>0,"YES","NO")) -> YES | M19: =IF(M3>=$Y$3,"YES",IF(SUM($D$13:M13)>0,"YES","NO")) -> YES | N19: =IF(N3>=$Y$3,"YES",IF(SUM($D$13:N13)>0,"YES","NO")) -> YES | O19: =IF(O3>=$Y$3,"YES",IF(SUM($D$13:O13)>0,"YES","NO")) -> YES | P19: =IF(P3>=$Y$3,"YES",IF(SUM($D$13:P13)>0,"YES","NO")) -> YES | Q19: =IF(Q3>=$Y$3,"YES",IF(SUM($D$13:Q13)>0,"YES","NO")) -> YES | R19: =IF(R3>=$Y$3,"YES",IF(SUM($D$13:R13)>0,"YES","NO")) -> YES | S19: =IF(S3>=$Y$3,"YES",IF(SUM($D$13:S13)>0,"YES","NO")) -> YES | T19: =IF(T3>=$Y$3,"YES",IF(SUM($D$13:T13)>0,"YES","NO")) -> YES | U19: =IF(U3>=$Y$3,"YES",IF(SUM($D$13:U13)>0,"YES","NO")) -> YES | V19: =IF(V3>=$Y$3,"YES",IF(SUM($D$13:V13)>0,"YES","NO")) -> YES | W19: =IF(W3>=$Y$3,"YES",IF(SUM($D$13:W13)>0,"YES","NO")) -> YES | Y19: =COUNTIF(D19:K19,"YES") -> 8 | Z19: >0 means they had nil allowance post, 0 means they joined after budget (assuming inputs OK)
C20: Date joined scheme wrong (inputs before date selected) | D20: =AND(D3<$Y$3,D13>0) -> FALSE | E20: =AND(E3<$Y$3,SUM($D$13:E13)>0) -> FALSE | F20: =AND(F3<$Y$3,SUM($D$13:F13)>0) -> FALSE | G20: =AND(G3<$Y$3,SUM($D$13:G13)>0) -> FALSE | H20: =AND(H3<$Y$3,SUM($D$13:H13)>0) -> FALSE | I20: =AND(I3<$Y$3,SUM($D$13:I13)>0) -> FALSE | J20: =AND(J3<$Y$3,SUM($D$13:J13)>0) -> FALSE | K20: =AND(K3<$Y$3,SUM($D$13:K13)>0) -> FALSE | L20: =AND(L3<$Y$3,SUM($D$13:L13)>0) -> FALSE | M20: =AND(M3<$Y$3,SUM($D$13:M13)>0) -> FALSE | N20: =AND(N3<$Y$3,SUM($D$13:N13)>0) -> FALSE | O20: =AND(O3<$Y$3,SUM($D$13:O13)>0) -> FALSE | P20: =AND(P3<$Y$3,SUM($D$13:P13)>0) -> FALSE | Q20: =AND(Q3<$Y$3,SUM($D$13:Q13)>0) -> FALSE | R20: =AND(R3<$Y$3,SUM($D$13:R13)>0) -> FALSE | S20: =AND(S3<$Y$3,SUM($D$13:S13)>0) -> FALSE | T20: =AND(T3<$Y$3,SUM($D$13:T13)>0) -> FALSE | U20: =AND(U3<$Y$3,SUM($D$13:U13)>0) -> FALSE | V20: =AND(V3<$Y$3,SUM($D$13:V13)>0) -> FALSE | W20: =AND(W3<$Y$3,SUM($D$13:W13)>0) -> FALSE | Y20: =COUNTIF(D20:V20,TRUE) -> 0 | Z20: >0 means warning on summary page:
C21: Chargeable Amount | D21: Inputs are capped at £50,000 | G21: =G41 -> 0 | H21: =H46 -> 0 | I21: =I51 -> 0 | J21: =J56 -> 0 | K21: =K61 -> 0 | L21: =L61 -> 0 | M21: =M71 -> 0 | N21: =N76 -> 0 | O21: =O81 -> 0 | P21: =P86 -> 0 | Q21: =Q91 -> 0 | R21: =R96 -> 0 | S21: =S101 -> 0 | T21: =T106 -> 0 | U21: =U111 -> 0 | V21: =V116 -> 0 | W21: =W121 -> 0 | Y21: Previous chargeable event logic | Z21: =IF((SUM(G21:V21)>0),1,0) -> 0
C23: Carry Forward still available this year | G23: =G30+G35+G40 -> 150000 | H23: =H35+H40+H45 -> 150000 | I23: =I40+I45+I50 -> 150000 | J23: =J45+J50+J55 -> 150000 | K23: =K50+K55+K60+K65 -> 180000 | L23: =L50+L55+L60+L65 -> 180000 | M23: =M55+M60+M65+M70 -> 130000 | N23: =N60+N65+N70+N75 -> 120000 | O23: =O65+O70+O75+O80 -> 120000 | P23: =P85+P80+P75 -> 120000 | Q23: =Q90+Q85+Q80 -> 120000 | R23: =R95+R90+R85 -> 120000 | S23: =S100+S95+S90 -> 120000 | T23: =T105+T100+T95 -> 120000 | U23: =U100+U105+U110 -> 140000 | V23: =V105+V110+V115 -> 160000 | W23: =W110+W115+W120 -> 180000
C25: Carry Forward Calculations - Existing Inputs | K25: =K2 -> 2015/16
D26: =D4 -> 2008/09 | E26: 2009/10 | F26: 2010/11 | G26: 2011/12 | H26: 2012/13 | I26: 2013/14 | J26: 2014/15 | K26: Pre Alignment | L26: Post Alignment | M26: 2016/17 | N26: 2017/18 | O26: 2018/19 | P26: 2019/20 | Q26: 2020/21 | R26: =R4 -> 2021/22 | S26: 2022/23 | T26: 2023/24 | U26: 2024/25 | V26: 2025/26 | W26: 2026/27
B27: 1 | C27: ='Pension Inputs'!$A4 -> 2008/09
C28: Unused | D28: =D7 -> 50000 | E28: =D30 -> 50000 | F28: =E30 -> 50000 | G28: =F30 -> 50000
C29: Used up | D29: =MIN(D7,D13) -> 0 | E29: 0 | F29: 0 | G29: =IF(G16=0,0,IF(G28-G16<0,G28,G16)) -> 0
C30: Available | D30: =MAX(0,D28-D29) -> 50000 | E30: =MAX(0,E28-E29) -> 50000 | F30: =MAX(0,F28-F29) -> 50000 | G30: =MAX(0,G28-G29) -> 50000
F31: Excess remaining | G31: =G16-G29 -> 0 | H31: =H16 -> 0
B32: 2 | C32: 2
C33: =C$28 -> Unused | E33: =E7 -> 50000 | F33: =E35 -> 50000 | G33: =F35 -> 50000 | H33: =G35 -> 50000
C34: =C$29 -> Used up | E34: =MIN(E7,E13) -> 0 | F34: 0 | G34: =IF(G16=0,0,IF(G33-G31<0,G33,G31)) -> 0 | H34: =IF(H16=0,0,IF(H33-H31<0,H33,H31)) -> 0
C35: =C$30 -> Available | E35: =E33-E34 -> 50000 | F35: =F33-F34 -> 50000 | G35: =G33-G34 -> 50000 | H35: =H33-H34 -> 50000
F36: Excess remaining | G36: =G31-G34 -> 0 | H36: =H31-H34 -> 0 | I36: =I16 -> 0
B37: 3 | C37: ='Pension Inputs'!$A6 -> 2010/11
C38: =C$28 -> Unused | F38: =F7 -> 50000 | G38: =F40 -> 50000 | H38: =G40 -> 50000 | I38: =H40 -> 50000
C39: =C$29 -> Used up | F39: =MIN(F7,F13) -> 0 | G39: =IF(G16=0,0,IF(G38-G36<0,G38,G36)) -> 0 | H39: =IF(H16=0,0,IF(H38-H36<0,H38,H36)) -> 0 | I39: =IF(I15=0,0,IF(((I15*-1)-I29-I34)>I38,I38,(I15*-1)-I29-I34)) -> 0
C40: =C$30 -> Available | F40: =F38-F39 -> 50000 | G40: =G38-G39 -> 50000 | H40: =H38-H39 -> 50000 | I40: =I38-I39 -> 50000
F41: Excess remaining | G41: =G36-G39 -> 0 | H41: =H36-H39 -> 0 | I41: =I36-I39 -> 0 | J41: =J16 -> 0
B42: 4 | C42: ='Pension Inputs'!$A7 -> 2011/12
C43: =C$28 -> Unused | G43: =G7 -> 50000 | H43: =G45 -> 50000 | I43: =H45 -> 50000 | J43: =I45 -> 50000
C44: =C$29 -> Used up | G44: =MIN(G7,G13) -> 0 | H44: =IF(H16=0,0,IF(H43-H41<0,H43,H41)) -> 0 | I44: =IF(I16=0,0,IF(I43-I41<0,I43,I41)) -> 0 | J44: =IF(J16=0,0,IF(J43-J41<0,J43,J41)) -> 0
C45: =C$30 -> Available | G45: =MAX(0,G43-G44) -> 50000 | H45: =H43-H44 -> 50000 | I45: =I43-I44 -> 50000 | J45: =J43-J44 -> 50000
G46: Excess remaining | H46: =H41-H44 -> 0 | I46: =I41-I44 -> 0 | J46: =J41-J44 -> 0 | K46: =K16 -> 0
B47: 5 | C47: ='Pension Inputs'!$A8 -> 2012/13
C48: =C$28 -> Unused | H48: =H7 -> 50000 | I48: =H50 -> 50000 | J48: =I50 -> 50000 | K48: =J50 -> 50000 | L48: =K50 -> 50000
C49: =C$29 -> Used up | H49: =MIN(H7,H13) -> 0 | I49: =IF(I16=0,0,IF(I48-I46<0,I48,I46)) -> 0 | J49: =IF(J16=0,0,IF(J48-J46<0,J48,J46)) -> 0 | K49: =IF(K16=0,0,IF(K48-K46<0,K48,K46)) -> 0 | L49: =IF(L66=0,0,IF(L48-L66<0,L48,L66)) -> 0
C50: =C$30 -> Available | H50: =H48-H49 -> 50000 | I50: =I48-I49 -> 50000 | J50: =J48-J49 -> 50000 | K50: =K48-K49 -> 50000 | L50: =L48-L49 -> 50000
H51: Excess remaining | I51: =I46-I49 -> 0 | J51: =J46-J49 -> 0 | K51: =K16-K49 -> 0 | L51: =L66-L49 -> 0 | M51: =M16 -> 0
B52: 6 | C52: ='Pension Inputs'!$A9 -> 2013/14
C53: =C$28 -> Unused | I53: =I7 -> 50000 | J53: =I55 -> 50000 | K53: =J55 -> 50000 | L53: =K55 -> 50000 | M53: =L55 -> 50000
C54: =C$29 -> Used up | I54: =MIN(I7,I13) -> 0 | J54: =IF(J16=0,0,IF(J53-J51<0,J53,J51)) -> 0 | K54: =IF(K16=0,0,IF(K53-K51<0,K53,K51)) -> 0 | L54: =IF(L51=0,0,IF(L53-L51<0,L53,L51)) -> 0 | M54: =IF(M16=0,0,IF(M53-M51<0,M53,M51)) -> 0
C55: =C$30 -> Available | I55: =I53-I54 -> 50000 | J55: =J53-J54 -> 50000 | K55: =K53-K54 -> 50000 | L55: =L53-L54 -> 50000 | M55: =M53-M54 -> 50000
I56: Excess remaining | J56: =J51-J54 -> 0 | K56: =K51-K54 -> 0 | L56: =L51-L54 -> 0 | M56: =M51-M54 -> 0 | N56: =N16 -> 0
B57: 7 | C57: ='Pension Inputs'!$A10 -> 2014/15
C58: =C$28 -> Unused | J58: =J7 -> 40000 | K58: =J60 -> 40000 | L58: =K60 -> 40000 | M58: =L60 -> 40000 | N58: =M60 -> 40000
C59: =C$29 -> Used up | J59: =MIN(J7,J13) -> 0 | K59: =IF(K16=0,0,IF(K58-K56<0,K58,K56)) -> 0 | L59: =IF(L16=0,0,IF(L58-L56<0,L58,L56)) -> 0 | M59: =IF(M16=0,0,IF(M58-M56<0,M58,M56)) -> 0 | N59: =IF(N16=0,0,IF(N58-N56<0,N58,N56)) -> 0
C60: =C$30 -> Available | J60: =J58-J59 -> 40000 | K60: =K58-K59 -> 40000 | L60: =L58-L59 -> 40000 | M60: =M58-M59 -> 40000 | N60: =N58-N59 -> 40000
J61: Excess remaining | K61: =K56-K59 -> 0 | L61: =L56-L59 -> 0 | M61: =M56-M59 -> 0 | N61: =N56-N59 -> 0 | O61: =O16 -> 0
B62: 8 | C62: ='Pension Inputs'!$A11 -> 2015/16 (pre alignment)
C63: =C$28 -> Unused | K63: =K7 -> 80000 | L63: =K65 -> 40000 | M63: =L65 -> 40000 | N63: =M65 -> 40000 | O63: =N65 -> 40000
C64: =C$29 -> Used up | K64: =MIN(K7,K13) -> 0 | L64: =MIN(L63,L13) -> 0 | M64: =IF(M16=0,0,IF(M63-M61<0,M63,M61)) -> 0 | N64: =IF(N16=0,0,IF(N63-N61<0,N63,N61)) -> 0 | O64: =IF(O16=0,0,IF(O63-O61<0,O63,O61)) -> 0
C65: =C$30 -> Available | K65: =MIN(K63-K64,40000) -> 40000 | L65: =L63-L64 -> 40000 | M65: =M63-M64 -> 40000 | N65: =N63-N64 -> 40000 | O65: =O63-O64 -> 40000
K66: Excess remaining | L66: =L16-L64 -> 0 | M66: =M61-M64 -> 0 | N66: =N61-N64 -> 0 | O66: =O61-O64 -> 0 | P66: =P16 -> 0
C67: ='Pension Inputs'!$A12 -> 2015/16 (post alignment)
C68: =C$28 -> Unused | L68: =L7 -> 0 | M68: =L70 -> 0 | N68: =M70 -> 0 | O68: =N70 -> 0
C69: =C$29 -> Used up | L69: =MIN(L7,L13) -> 0 | M69: =IF(M16=0,0,IF(M68-M66<0,M68,M66)) -> 0 | N69: =IF(N16=0,0,IF(N68-N66<0,N68,N66)) -> 0 | O69: =IF(O16=0,0,IF(O68-O66<0,O68,O66)) -> 0
C70: =C$30 -> Available | L70: =L68-L69 -> 0 | M70: =M68-M69 -> 0 | N70: =N68-N69 -> 0 | O70: =O68-O69 -> 0
K71: Excess remaining | L71: =L16 -> 0 | M71: =M66-M69 -> 0 | N71: =N66-N69 -> 0 | O71: =O66-O69 -> 0
B72: 9 | C72: ='Pension Inputs'!$A13 -> 2016/17
C73: =C$28 -> Unused | M73: =M7 -> 40000 | N73: =M75 -> 40000 | O73: =N75 -> 40000 | P73: =O75 -> 40000
C74: =C$29 -> Used up | M74: =MIN(M7,M13) -> 0 | N74: =IF(N16=0,0,IF(N73-N71<0,N73,N71)) -> 0 | O74: =IF(O16=0,0,IF(O73-O71<0,O73,O71)) -> 0 | P74: =IF(P16=0,0,IF(P73-P66<0,P73,P66)) -> 0
C75: =C$30 -> Available | M75: =M73-M74 -> 40000 | N75: =N73-N74 -> 40000 | O75: =O73-O74 -> 40000 | P75: =P73-P74 -> 40000
M76: Excess remaining | N76: =N71-N74 -> 0 | O76: =O71-O74 -> 0 | P76: =P66-P74 -> 0 | Q76: =Q16 -> 0
B77: 10 | C77: ='Pension Inputs'!$A14 -> 2017/18
C78: =C$28 -> Unused | N78: =N7 -> 40000 | O78: =N80 -> 40000 | P78: =O80 -> 40000 | Q78: =P80 -> 40000
C79: =C$29 -> Used up | N79: =MIN(N7,N13) -> 0 | O79: =IF(O16=0,0,IF(O78-O76<0,O78,O76)) -> 0 | P79: =IF(P16=0,0,IF(P78-P76<0,P78,P76)) -> 0 | Q79: =IF(Q16=0,0,IF(Q78-Q16<0,Q78,Q16)) -> 0
C80: =C$30 -> Available | N80: =N78-N79 -> 40000 | O80: =O78-O79 -> 40000 | P80: =P78-P79 -> 40000 | Q80: =Q78-Q79 -> 40000
N81: Excess remaining | O81: =O76-O79 -> 0 | P81: =P76-P79 -> 0 | Q81: =Q76-Q79 -> 0 | R81: =R16 -> 0
B82: 11 | C82: ='Pension Inputs'!A15 -> 2018/19
C83: =C$28 -> Unused | O83: =O7 -> 40000 | P83: =O85 -> 40000 | Q83: =P85 -> 40000 | R83: =Q85 -> 40000
C84: =C$29 -> Used up | O84: =MIN(O7,O13) -> 0 | P84: =IF(P16=0,0,IF(P83-P81<0,P83,P81)) -> 0 | Q84: =IF(Q16=0,0,IF(Q83-Q81<0,Q83,Q81)) -> 0 | R84: =IF(R16=0,0,IF(R83-R16<0,R83,R16)) -> 0
C85: =C$30 -> Available | O85: =O83-O84 -> 40000 | P85: =P83-P84 -> 40000 | Q85: =Q83-Q84 -> 40000 | R85: =R83-R84 -> 40000
O86: Excess remaining | P86: =P81-P84 -> 0 | Q86: =Q81-Q84 -> 0 | R86: =R81-R84 -> 0 | S86: =S16 -> 0
C87: ='Pension Inputs'!A16 -> 2019/20
C88: =C$28 -> Unused | P88: =P7 -> 40000 | Q88: =P90 -> 40000 | R88: =Q90 -> 40000 | S88: =R90 -> 40000
C89: =C$29 -> Used up | P89: =MIN(P7,P13) -> 0 | Q89: =IF(Q16=0,0,IF(Q88-Q86<0,Q88,Q86)) -> 0 | R89: =IF(R16=0,0,IF(R88-R86<0,R88,R86)) -> 0 | S89: =IF(S16=0,0,IF(S88-S16<0,S88,S16)) -> 0
C90: =C$30 -> Available | P90: =P88-P89 -> 40000 | Q90: =Q88-Q89 -> 40000 | R90: =R88-R89 -> 40000 | S90: =S88-S89 -> 40000
P91: Excess remaining | Q91: =Q86-Q89 -> 0 | R91: =R86-R89 -> 0 | S91: =S86-S89 -> 0 | T91: =T16 -> 0
C92: ='Pension Inputs'!A17 -> 2020/21
C93: =C$28 -> Unused | Q93: =Q7 -> 40000 | R93: =Q95 -> 40000 | S93: =R95 -> 40000 | T93: =S95 -> 40000
C94: =C$29 -> Used up | Q94: =MIN(Q7,Q13) -> 0 | R94: =IF(R16=0,0,IF(R93-R91<0,R93,R91)) -> 0 | S94: =IF(S16=0,0,IF(S93-S91<0,S93,S91)) -> 0 | T94: =IF(T16=0,0,IF(T93-T91<0,T93,T91)) -> 0
C95: =C$30 -> Available | Q95: =Q93-Q94 -> 40000 | R95: =R93-R94 -> 40000 | S95: =S93-S94 -> 40000 | T95: =T93-T94 -> 40000
Q96: Excess remaining | R96: =R91-R94 -> 0 | S96: =S91-S94 -> 0 | T96: =T91-T94 -> 0 | U96: =U16 -> 0
C97: ='Pension Inputs'!A18 -> 2021/22
C98: =C$28 -> Unused | R98: =R7 -> 40000 | S98: =R100 -> 40000 | T98: =S100 -> 40000 | U98: =T100 -> 40000
C99: =C$29 -> Used up | R99: =MIN(R7,R13) -> 0 | S99: =IF(S16=0,0,IF(S98-S96<0,S98,S96)) -> 0 | T99: =IF(T16=0,0,IF(T98-T96<0,T98,T96)) -> 0 | U99: =IF(U16=0,0,IF(U98-U96<0,U98,U96)) -> 0
C100: =C$30 -> Available | R100: =R98-R99 -> 40000 | S100: =S98-S99 -> 40000 | T100: =T98-T99 -> 40000 | U100: =U98-U99 -> 40000
R101: Excess remaining | S101: =S96-S99 -> 0 | T101: =T96-T99 -> 0 | U101: =U96-U99 -> 0 | V101: =V16 -> 0
C102: ='Pension Inputs'!A19 -> 2022/23
C103: =C$28 -> Unused | S103: =S7 -> 40000 | T103: =S105 -> 40000 | U103: =T105 -> 40000 | V103: =U105 -> 40000
C104: =C$29 -> Used up | S104: =MIN(S7,S13) -> 0 | T104: =IF(T16=0,0,IF(T103-T101<0,T103,T101)) -> 0 | U104: =IF(U16=0,0,IF(U103-U101<0,U103,U101)) -> 0 | V104: =IF(V16=0,0,IF(V103-V101<0,V103,V101)) -> 0
C105: =C$30 -> Available | S105: =S103-S104 -> 40000 | T105: =T103-T104 -> 40000 | U105: =U103-U104 -> 40000 | V105: =V103-V104 -> 40000
S106: Excess remaining | T106: =T101-T104 -> 0 | U106: =U101-U104 -> 0 | V106: =V101-V104 -> 0 | W106: =W16 -> 0
C107: ='Pension Inputs'!A20 -> 2023/24
C108: =C$28 -> Unused | T108: =T7 -> 60000 | U108: =T110 -> 60000 | V108: =U110 -> 60000 | W108: =V110 -> 60000
C109: =C$29 -> Used up | T109: =MIN(T7,T13) -> 0 | U109: =IF(U16=0,0,IF(U108-U106<0,U108,U106)) -> 0 | V109: =IF(V16=0,0,IF(V108-V106<0,V108,V106)) -> 0 | W109: =IF(W16=0,0,IF(W108-W106<0,W108,W106)) -> 0
C110: =C$30 -> Available | T110: =T108-T109 -> 60000 | U110: =U108-U109 -> 60000 | V110: =V108-V109 -> 60000 | W110: =W108-W109 -> 60000
T111: Excess remaining | U111: =U106-U109 -> 0 | V111: =V106-V109 -> 0 | W111: =W106-W109 -> 0
C112: ='Pension Inputs'!A21 -> 2024/25
C113: =C$28 -> Unused | U113: =U7 -> 60000 | V113: =U115 -> 60000 | W113: =V115 -> 60000
C114: =C$29 -> Used up | U114: =MIN(U7,U13) -> 0 | V114: =IF(V16=0,0,IF(V113-V111<0,V113,V111)) -> 0 | W114: =IF(W16=0,0,IF(W113-W111<0,W113,W111)) -> 0
C115: =C$30 -> Available | U115: =U113-U114 -> 60000 | V115: =V113-V114 -> 60000 | W115: =W113-W114 -> 60000
U116: Excess remaining | V116: =V111-V114 -> 0 | W116: =W111-W114 -> 0
C117: ='Pension Inputs'!A22 -> 2025/26
C118: =C$28 -> Unused | V118: =V7 -> 60000 | W118: =V120 -> 60000
C119: =C$29 -> Used up | V119: =MIN(V7,V13) -> 0 | W119: =IF(W16=0,0,IF(W118-W116<0,W118,W116)) -> 0
C120: =C$30 -> Available | V120: =V118-V119 -> 60000 | W120: =W118-W119 -> 60000
V121: Excess remaining | W121: =W116-W119 -> 0
C123: ='Pension Inputs'!A23 -> 2026/27
C124: =C$28 -> Unused | W124: =W7 -> 60000
C125: =C$29 -> Used up | W125: =MIN(W7,W13) -> 0
C126: =C$30 -> Available | W126: =W124-W125 -> 60000
F134: 2010 Straddling PIP calculation
F135: Allowance | G135: Actual | H135: Excess
D136: Pre 14/10/10 | F136: =255000-(MIN(50000,G137)) -> 255000 | G136: ='Pension Inputs'!Q12 -> 0 | H136: =MAX(0,G136-F136) -> 0
D137: Post 14/10/10 | F137: =G5 -> 50000 | G137: ='Pension Inputs'!Q13 -> 0 | H137: =MAX(0,G137-F137) -> 0
H138: =SUM(H136:H137) -> 0
E139: 2015 Pre and Post Budget PIPs
F140: Allowance | G140: Actual | H140: Excess
E141: Pre 9/7/15 | F141: =K7 -> 80000 | G141: ='Pension Inputs'!Q18 -> 0 | H141: =MAX(0,G141-F141) -> 0
E142: Post 9/7/15 | F142: =IF(H141>0,0,MIN(40000,80000-G141)) -> 40000 | G142: ='Pension Inputs'!Q19 -> 0 | H142: =MAX(0,G142-F142) -> 0
H143: =SUM(H141:H142) -> 0

Sheet Tapered AA Calculations
E1: Tapered Annual Allowance Calculations Built by M&G | H1: 0 | CF1: 0
B3: Please select the year (or years) that you need to do taper calculations for. | E3: Instructions: Input relevant figures in white boxes. Tapered Allowance will be calculated where relevant. For income definitions see Pensions Tax Manual - PTM057100 | I3: 2016/17 Tax Year | P3: 2017/18 Tax Year | W3: 2018/19 Tax Year | AD3: 2019/20 Tax Year | AK3: 2020/21 Tax Year | AR3: 2021/22 Tax Year | AY3: 2022/23 Tax Year | BF3: 2023/24 Tax Year | BM3: 2024/25 Tax Year | BT3: 2025/26 Tax Year | CA3: 2026/27 Tax Year
K5: Adjusted Income | M5: Threshold Income | R5: Adjusted Income | T5: Threshold Income | Y5: Adjusted Income | AA5: Threshold Income | AF5: Adjusted Income | AH5: Threshold Income | AM5: Adjusted Income | AO5: Threshold Income | AT5: Adjusted Income | AV5: Threshold Income | BA5: Adjusted Income | BC5: Threshold Income | BH5: Adjusted Income | BJ5: Threshold Income | BO5: Adjusted Income | BQ5: Threshold Income | BV5: Adjusted Income | BX5: Threshold Income | CC5: Adjusted Income | CE5: Threshold Income
E7: Total Income | I7: 0 | K7: =I7 -> 0 | M7: =I7 -> 0 | P7: 0 | R7: =P7 -> 0 | T7: =P7 -> 0 | W7: 0 | Y7: =W7 -> 0 | AA7: =W7 -> 0 | AD7: 0 | AF7: =AD7 -> 0 | AH7: =AD7 -> 0 | AK7: 0 | AM7: =AK7 -> 0 | AO7: =AK7 -> 0 | AR7: 0 | AT7: =AR7 -> 0 | AV7: =AR7 -> 0 | AY7: 0 | BA7: =AY7 -> 0 | BC7: =AY7 -> 0 | BF7: 0 | BH7: =BF7 -> 0 | BJ7: =BF7 -> 0 | BM7: 0 | BO7: =BM7 -> 0 | BQ7: =BM7 -> 0 | BT7: 0 | BV7: =BT7 -> 0 | BX7: =BT7 -> 0 | CA7: 0 | CC7: =CA7 -> 0 | CE7: =CA7 -> 0
E8: (please remember to deduct net pay contributions from this figure) | K8: - | M8: - | R8: - | T8: - | Y8: - | AA8: - | AF8: - | AH8: - | AM8: - | AO8: - | AT8: - | AV8: - | BA8: - | BC8: - | BH8: - | BJ8: - | BO8: - | BQ8: - | BV8: - | BX8: - | CC8: - | CE8: -
E10: Allowable Reliefs | I10: 0 | K10: =I10 -> 0 | M10: =I10 -> 0 | P10: 0 | R10: =P10 -> 0 | T10: =P10 -> 0 | W10: 0 | Y10: =W10 -> 0 | AA10: =W10 -> 0 | AD10: 0 | AF10: =AD10 -> 0 | AH10: =AD10 -> 0 | AK10: 0 | AM10: =AK10 -> 0 | AO10: =AK10 -> 0 | AR10: 0 | AT10: =AR10 -> 0 | AV10: =AR10 -> 0 | AY10: 0 | BA10: =AY10 -> 0 | BC10: =AY10 -> 0 | BF10: 0 | BH10: =BF10 -> 0 | BJ10: =BF10 -> 0 | BM10: 0 | BO10: =BM10 -> 0 | BQ10: =BM10 -> 0 | BT10: 0 | BV10: =BT10 -> 0 | BX10: =BT10 -> 0 | CA10: 0 | CC10: =CA10 -> 0 | CE10: =CA10 -> 0
K11: + | R11: + | Y11: + | AF11: + | AM11: + | AT11: + | BA11: + | BH11: + | BO11: + | BV11: + | CC11: +
E12: Net Pay Contributions | I12: 0 | K12: =I12 -> 0 | P12: 0 | R12: =P12 -> 0 | W12: 0 | Y12: =W12 -> 0 | AD12: 0 | AF12: =AD12 -> 0 | AJ12: 0 | AK12: 0 | AM12: =AK12 -> 0 | AR12: 0 | AT12: =AR12 -> 0 | AY12: 0 | BA12: =AY12 -> 0 | BF12: 0 | BH12: =BF12 -> 0 | BM12: 0 | BO12: =BM12 -> 0 | BT12: 0 | BV12: =BT12 -> 0 | CA12: 0 | CC12: =CA12 -> 0
E13: (including any s226 contributions) | M13: - | T13: - | AA13: - | AH13: - | AO13: - | AV13: - | BC13: - | BJ13: - | BQ13: - | BX13: - | CE13: -
E15: Relief at Source contributions (Gross) | I15: 0 | M15: =I15 -> 0 | P15: 0 | T15: =P15 -> 0 | W15: 0 | AA15: =W15 -> 0 | AD15: 0 | AH15: =AD15 -> 0 | AJ15: 0 | AK15: 0 | AO15: =AK15 -> 0 | AR15: 0 | AV15: =AR15 -> 0 | AY15: 0 | BC15: =AY15 -> 0 | BF15: 0 | BJ15: =BF15 -> 0 | BM15: 0 | BQ15: =BM15 -> 0 | BT15: 0 | BX15: =BT15 -> 0 | CA15: 0 | CE15: =CA15 -> 0
K16: + | R16: + | Y16: + | AF16: + | AM16: + | AT16: + | BA16: + | BH16: + | BO16: + | BV16: + | CC16: +
E17: Value of employer pension contributions
E18: Employer Penson Contributions to Money Purchase | I18: 0 | K18: =I18 -> 0 | P18: 0 | R18: =P18 -> 0 | W18: 0 | Y18: =W18 -> 0 | AD18: 0 | AF18: =AD18 -> 0 | AK18: 0 | AM18: =AK18 -> 0 | AR18: 0 | AT18: =AR18 -> 0 | AY18: 0 | BA18: =AY18 -> 0 | BF18: 0 | BH18: =BF18 -> 0 | BM18: 0 | BO18: =BM18 -> 0 | BT18: 0 | BV18: =BT18 -> 0 | CA18: 0 | CC18: =CA18 -> 0
K19: + | R19: + | Y19: + | AF19: + | AM19: + | AT19: + | BA19: + | BH19: + | BO19: + | BV19: + | CC19: +
E20: Total DB Pension Input Amount for year | I20: 0 | K20: =I20 -> 0 | P20: 0 | R20: =P20 -> 0 | W20: 0 | Y20: =W20 -> 0 | AD20: 0 | AF20: =AD20 -> 0 | AK20: 0 | AM20: =AK20 -> 0 | AR20: 0 | AT20: =AR20 -> 0 | AY20: 0 | BA20: =AY20 -> 0 | BF20: 0 | BH20: =BF20 -> 0 | BM20: 0 | BO20: =BM20 -> 0 | BT20: 0 | BV20: =BT20 -> 0 | CA20: 0 | CC20: =CA20 -> 0
K21: - | R21: - | Y21: - | AF21: - | AM21: - | AT21: - | BA21: - | BH21: - | BO21: - | BV21: - | CC21: -
E22: Total gross employee contribution to DB scheme(s) included above | I22: 0 | K22: =I22 -> 0 | P22: 0 | R22: =P22 -> 0 | W22: 0 | Y22: =W22 -> 0 | AD22: 0 | AF22: =AD22 -> 0 | AK22: 0 | AM22: =AK22 -> 0 | AR22: 0 | AT22: =AR22 -> 0 | AY22: 0 | BA22: =AY22 -> 0 | BF22: 0 | BH22: =BF22 -> 0 | BM22: 0 | BO22: =BM22 -> 0 | BT22: 0 | BV22: =BT22 -> 0 | CA22: 0 | CC22: =CA22 -> 0
M24: + | T24: + | AA24: + | AH24: + | AO24: + | AV24: + | BC24: + | BJ24: + | BQ24: + | BX24: + | CE24: +
E25: Employment income given up for pension contributions post 09/07/15 | I25: 0 | M25: =I25 -> 0 | P25: 0 | T25: =P25 -> 0 | W25: 0 | AA25: =W25 -> 0 | AD25: 0 | AH25: =AD25 -> 0 | AK25: 0 | AO25: =AK25 -> 0 | AR25: 0 | AV25: =AR25 -> 0 | AY25: 0 | BC25: =AY25 -> 0 | BF25: 0 | BJ25: =BF25 -> 0 | BM25: 0 | BQ25: =BM25 -> 0 | BT25: 0 | BX25: =BT25 -> 0 | CA25: 0 | CE25: =CA25 -> 0
K26: - | M26: - | R26: - | T26: - | Y26: - | AA26: - | AF26: - | AH26: - | AM26: - | AO26: - | AT26: - | AV26: - | BA26: - | BC26: - | BH26: - | BJ26: - | BO26: - | BQ26: - | BV26: - | BX26: - | CC26: - | CE26: -
E28: Taxable Lump Sum Death Benefits (Gross Value) | I28: 0 | K28: =I28 -> 0 | M28: =I28 -> 0 | P28: 0 | R28: =P28 -> 0 | T28: =P28 -> 0 | W28: 0 | Y28: =W28 -> 0 | AA28: =W28 -> 0 | AD28: 0 | AF28: =AD28 -> 0 | AH28: =AD28 -> 0 | AK28: 0 | AM28: =AK28 -> 0 | AO28: =AK28 -> 0 | AR28: 0 | AT28: =AR28 -> 0 | AV28: =AR28 -> 0 | AY28: 0 | BA28: =AY28 -> 0 | BC28: =AY28 -> 0 | BF28: 0 | BH28: =BF28 -> 0 | BJ28: =BF28 -> 0 | BM28: 0 | BO28: =BM28 -> 0 | BQ28: =BM28 -> 0 | BT28: 0 | BV28: =BT28 -> 0 | BX28: =BT28 -> 0 | CA28: 0 | CC28: =CA28 -> 0 | CE28: =CA28 -> 0
E30: Warning, once you have calculated the remaining AA for the member be aware that any further contributions may change the tapered calculation. For instance if the employer is planning to contribute the remaining AA for a member, the contribution they can make will be two thirds of the remaining AA that has been calculated. | I30: Totals | K30: =K7-K10+K12+(K18+K20-K22)-K28 -> 0 | M30: =M7-M10-M15+M25-M28 -> 0 | P30: Totals | R30: =R7-R10+R12+(R18+R20-R22)-R28 -> 0 | T30: =T7-T10-T15+T25-T28 -> 0 | W30: Totals | Y30: =Y7-Y10+Y12+(Y18+Y20-Y22)-Y28 -> 0 | AA30: =AA7-AA10-AA15+AA25-AA28 -> 0 | AD30: Totals | AF30: =AF7-AF10+AF12+(AF18+AF20-AF22)-AF28 -> 0 | AH30: =AH7-AH10-AH15+AH25-AH28 -> 0 | AM30: =AM7-AM10+AM12+(AM18+AM20-AM22)-AM28 -> 0 | AO30: =AO7-AO10-AO15+AO25-AO28 -> 0 | AR30: Totals | AT30: =AT7-AT10+AT12+(AT18+AT20-AT22)-AT28 -> 0 | AV30: =AV7-AV10-AV15+AV25-AV28 -> 0 | AY30: Totals | BA30: =BA7-BA10+BA12+(BA18+BA20-BA22)-BA28 -> 0 | BC30: =BC7-BC10-BC15+BC25-BC28 -> 0 | BF30: Totals | BH30: =BH7-BH10+BH12+(BH18+BH20-BH22)-BH28 -> 0 | BJ30: =BJ7-BJ10-BJ15+BJ25-BJ28 -> 0 | BM30: Totals | BO30: =BO7-BO10+BO12+(BO18+BO20-BO22)-BO28 -> 0 | BQ30: =BQ7-BQ10-BQ15+BQ25-BQ28 -> 0 | BT30: Totals | BV30: =BV7-BV10+BV12+(BV18+BV20-BV22)-BV28 -> 0 | BX30: =BX7-BX10-BX15+BX25-BX28 -> 0 | CA30: Totals | CC30: =CC7-CC10+CC12+(CC18+CC20-CC22)-CC28 -> 0 | CE30: =CE7-CE10-CE15+CE25-CE28 -> 0
I32: Limit breached? | K32: =IF(K30>150002,"Yes","No") -> No | M32: =IF(M30>110000,"Yes","No") -> No | P32: Limit breached? | R32: =IF(R30>150002,"Yes","No") -> No | T32: =IF(T30>110000,"Yes","No") -> No | W32: Limit breached? | Y32: =IF(Y30>150002,"Yes","No") -> No | AA32: =IF(AA30>110000,"Yes","No") -> No | AD32: Limit breached? | AF32: =IF(AF30>150002,"Yes","No") -> No | AH32: =IF(AH30>110000,"Yes","No") -> No | AM32: =IF(AM30>240002,"Yes","No") -> No | AO32: =IF(AO30>200000,"Yes","No") -> No | AR32: Limit breached? | AT32: =IF(AT30>240002,"Yes","No") -> No | AV32: =IF(AV30>200000,"Yes","No") -> No | AY32: Limit breached? | BA32: =IF(BA30>240002,"Yes","No") -> No | BC32: =IF(BC30>200000,"Yes","No") -> No | BF32: Limit breached? | BH32: =IF(BH30>260002,"Yes","No") -> No | BJ32: =IF(BJ30>200000,"Yes","No") -> No | BM32: Limit breached? | BO32: =IF(BO30>260002,"Yes","No") -> No | BQ32: =IF(BQ30>200000,"Yes","No") -> No | BT32: Limit breached? | BV32: =IF(BV30>260002,"Yes","No") -> No | BX32: =IF(BX30>200000,"Yes","No") -> No | CA32: Limit breached? | CC32: =IF(CC30>260002,"Yes","No") -> No | CE32: =IF(CE30>200000,"Yes","No") -> No
I34: Is the Taper Triggered? | L34: =IF((K32="YES")*AND(M32="YES"),"Yes","No") -> No | P34: Is the Taper Triggered? | S34: =IF((R32="YES")*AND(T32="YES"),"Yes","No") -> No | W34: Is the Taper Triggered? | Z34: =IF((Y32="YES")*AND(AA32="YES"),"Yes","No") -> No | AD34: Is the Taper Triggered? | AG34: =IF((AF32="YES")*AND(AH32="YES"),"Yes","No") -> No | AK34: Is the Taper Triggered? | AN34: =IF((AM32="YES")*AND(AO32="YES"),"Yes","No") -> No | AR34: Is the Taper Triggered? | AU34: =IF((AT32="YES")*AND(AV32="YES"),"Yes","No") -> No | AY34: Is the Taper Triggered? | BB34: =IF((BA32="YES")*AND(BC32="YES"),"Yes","No") -> No | BF34: Is the Taper Triggered? | BI34: =IF((BH32="YES")*AND(BJ32="YES"),"Yes","No") -> No | BM34: Is the Taper Triggered? | BP34: =IF((BO32="YES")*AND(BQ32="YES"),"Yes","No") -> No | BT34: Is the Taper Triggered? | BW34: =IF((BV32="YES")*AND(BX32="YES"),"Yes","No") -> No | CA34: Is the Taper Triggered? | CD34: =IF((CC32="YES")*AND(CE32="YES"),"Yes","No") -> No
I35: Annual Allowance for 2016/17 | L35: =ROUNDUP(MAX(10000,0,IF(L34="Yes",40000-((K30-150000)/2),40000)),0) -> 40000 | P35: Annual Allowance for 2017/18 | S35: =ROUNDUP(MAX(10000,0,IF(S34="Yes",40000-((R30-150000)/2),40000)),0) -> 40000 | W35: Annual Allowance for 2018/19 | Z35: =ROUNDUP(MAX(10000,0,IF(Z34="Yes",40000-((Y30-150000)/2),40000)),0) -> 40000 | AD35: Annual Allowance for 2019/20 | AG35: =ROUNDUP(MAX(10000,0,IF(AG34="Yes",40000-((AF30-150000)/2),40000)),0) -> 40000 | AK35: Annual Allowance for 2020/21 | AN35: =ROUNDUP(MAX(4000,0,IF(AN34="Yes",40000-((AM30-240000)/2),40000)),0) -> 40000 | AR35: Annual Allowance for 2021/22 | AU35: =ROUNDUP(MAX(4000,0,IF(AU34="Yes",40000-((AT30-240000)/2),40000)),0) -> 40000 | AY35: Annual Allowance for 2022/23 | BB35: =ROUNDUP(MAX(4000,0,IF(BB34="Yes",40000-((BA30-240000)/2),40000)),0) -> 40000 | BF35: Annual Allowance for 2023/24 | BI35: =ROUNDUP(MAX(10000,0,IF(BI34="Yes",60000-((BH30-260000)/2),60000)),0) -> 60000 | BM35: Annual Allowance for 2024/25 | BP35: =ROUNDUP(MAX(10000,0,IF(BP34="Yes",60000-((BO30-260000)/2),60000)),0) -> 60000 | BT35: Annual Allowance for 2025/26 | BW35: =ROUNDUP(MAX(10000,0,IF(BW34="Yes",60000-((BV30-260000)/2),60000)),0) -> 60000 | CA35: Annual Allowance for 2026/27 | CD35: =ROUNDUP(MAX(10000,0,IF(CD34="Yes",60000-((CC30-260000)/2),60000)),0) -> 60000
AV36: 0
BF41: 0
K42: Total Inputs | M42: =I7+I10+I12+I15+I18+I20+I22+I25+I28 -> 0 | R42: Total Inputs | T42: =P7+P10+P12+P15+P18+P20+P22+P25+P28 -> 0 | Y42: Total Inputs | AA42: =W7+W10+W12+W15+W18+W20+W22+W25+W28 -> 0 | AF42: Total Inputs | AH42: =AD7+AD10+AD12+AD15+AD18+AD20+AD22+AD25+AD28 -> 0 | AM42: Total Inputs | AO42: =AK7+AK10+AK12+AK15+AK18+AK20+AK22+AK25+AK28 -> 0 | AT42: Total Inputs | AV42: =AR7+AR10+AR12+AR15+AR18+AR20+AR22+AR25+AR28 -> 0 | BA42: Total Inputs | BC42: =AY7+AY10+AY12+AY15+AY18+AY20+AY22+AY25+AY28 -> 0 | BH42: Total Inputs | BJ42: =BF7+BF10+BF12+BF15+BF18+BF20+BF22+BF25+BF28 -> 0 | BO42: Total Inputs | BQ42: =BM7+BM10+BM12+BM15+BM18+BM20+BM22+BM25+BM28 -> 0 | BV42: Total Inputs | BX42: =BT7+BT10+BT12+BT15+BT18+BT20+BT22+BT25+BT28 -> 0 | CC42: Total Inputs | CE42: =CA7+CA10+CA12+CA15+CA18+CA20+CA22+CA25+CA28 -> 0
K43: AA Input | M43: =(I12-I22)+I15+I18+I20 -> 0 | R43: AA Input | T43: =(P12-P22)+P15+P18+P20 -> 0 | Y43: AA Input | AA43: =(W12-W22)+W15+W18+W20 -> 0 | AF43: AA Input | AH43: =(AD12-AD22)+AD15+AD18+AD20 -> 0 | AM43: AA Input | AO43: =(AK12-AK22)+AK15+AK18+AK20 -> 0 | AT43: AA Input | AV43: =(AR12-AR22)+AR15+AR18+AR20 -> 0 | BA43: AA Input | BC43: =(AY12-AY22)+AY15+AY18+AY20 -> 0 | BH43: AA Input | BJ43: =(BF12-BF22)+BF15+BF18+BF20 -> 0 | BO43: AA Input | BQ43: =(BM12-BM22)+BM15+BM18+BM20 -> 0 | BV43: AA Input | BX43: =(BT12-BT22)+BT15+BT18+BT20 -> 0 | CC43: AA Input | CE43: =(CA12-CA22)+CA15+CA18+CA20 -> 0

Sheet Tapered Calcs - Print Friendly
E1: Tapered Annual Allowance Calculations Built by M&G
E3: ='Tapered AA Calculations'!E3 -> Instructions: Input relevant figures in white boxes. Tapered Allowance will be calculated where relevant. For income definitions see Pensions Tax Manual - PTM057100 | I3: 2016/17 Tax Year | P3: 2017/18 Tax Year | W3: 2018/19 Tax Year | AD3: 2019/20 Tax Year | AK3: 2020/21 Tax Year | AR3: 2021/22 Tax Year | AY3: 2022/23 Tax Year | BF3: 2023/24 Tax Year | BM3: 2024/25 Tax Year | BT3: 2025/26 Tax Year | CA3: 2026/27 Tax Year
K5: Adjusted Income | M5: Threshold Income | R5: Adjusted Income | T5: Threshold Income | Y5: Adjusted Income | AA5: Threshold Income | AF5: Adjusted Income | AH5: Threshold Income | AM5: Adjusted Income | AO5: Threshold Income | AT5: Adjusted Income | AV5: Threshold Income | BA5: Adjusted Income | BC5: Threshold Income | BH5: Adjusted Income | BJ5: Threshold Income | BO5: Adjusted Income | BQ5: Threshold Income | BV5: Adjusted Income | BX5: Threshold Income | CC5: Adjusted Income | CE5: Threshold Income
E7: ='Tapered AA Calculations'!E7 -> Total Income | I7: ='Tapered AA Calculations'!I7 -> 0 | K7: ='Tapered AA Calculations'!K7 -> 0 | M7: ='Tapered AA Calculations'!M7 -> 0 | P7: ='Tapered AA Calculations'!P7 -> 0 | R7: ='Tapered AA Calculations'!R7 -> 0 | T7: ='Tapered AA Calculations'!T7 -> 0 | W7: ='Tapered AA Calculations'!W7 -> 0 | Y7: ='Tapered AA Calculations'!Y7 -> 0 | AA7: ='Tapered AA Calculations'!AA7 -> 0 | AD7: ='Tapered AA Calculations'!AD7 -> 0 | AF7: ='Tapered AA Calculations'!AF7 -> 0 | AH7: ='Tapered AA Calculations'!AH7 -> 0 | AK7: ='Tapered AA Calculations'!AK7 -> 0 | AM7: ='Tapered AA Calculations'!AM7 -> 0 | AO7: ='Tapered AA Calculations'!AO7 -> 0 | AR7: ='Tapered AA Calculations'!AR7 -> 0 | AT7: ='Tapered AA Calculations'!AT7 -> 0 | AV7: ='Tapered AA Calculations'!AV7 -> 0 | AY7: ='Tapered AA Calculations'!AY7 -> 0 | BA7: ='Tapered AA Calculations'!BA7 -> 0 | BC7: ='Tapered AA Calculations'!BC7 -> 0 | BF7: ='Tapered AA Calculations'!BF7 -> 0 | BH7: ='Tapered AA Calculations'!BH7 -> 0 | BJ7: ='Tapered AA Calculations'!BJ7 -> 0 | BM7: ='Tapered AA Calculations'!BM7 -> 0 | BO7: ='Tapered AA Calculations'!BO7 -> 0 | BQ7: ='Tapered AA Calculations'!BQ7 -> 0 | BT7: ='Tapered AA Calculations'!BT7 -> 0 | BV7: ='Tapered AA Calculations'!BV7 -> 0 | BX7: ='Tapered AA Calculations'!BX7 -> 0 | CA7: ='Tapered AA Calculations'!CA7 -> 0 | CC7: ='Tapered AA Calculations'!CC7 -> 0 | CE7: ='Tapered AA Calculations'!CE7 -> 0
E8: ='Tapered AA Calculations'!E8 -> (please remember to deduct net pay contributions from this figure) | K8: ='Tapered AA Calculations'!K8 -> - | M8: ='Tapered AA Calculations'!M8 -> - | R8: ='Tapered AA Calculations'!R8 -> - | T8: ='Tapered AA Calculations'!T8 -> - | Y8: ='Tapered AA Calculations'!Y8 -> - | AA8: ='Tapered AA Calculations'!AA8 -> - | AF8: ='Tapered AA Calculations'!AF8 -> - | AH8: ='Tapered AA Calculations'!AH8 -> - | AM8: ='Tapered AA Calculations'!AM8 -> - | AO8: ='Tapered AA Calculations'!AO8 -> - | AT8: ='Tapered AA Calculations'!AT8 -> - | AV8: ='Tapered AA Calculations'!AV8 -> - | BA8: ='Tapered AA Calculations'!BA8 -> - | BC8: ='Tapered AA Calculations'!BC8 -> - | BH8: ='Tapered AA Calculations'!BH8 -> - | BJ8: ='Tapered AA Calculations'!BJ8 -> - | BO8: ='Tapered AA Calculations'!BO8 -> - | BQ8: ='Tapered AA Calculations'!BQ8 -> - | BV8: ='Tapered AA Calculations'!BV8 -> - | BX8: ='Tapered AA Calculations'!BX8 -> - | CC8: ='Tapered AA Calculations'!CC8 -> - | CE8: ='Tapered AA Calculations'!CE8 -> -
E10: ='Tapered AA Calculations'!E10 -> Allowable Reliefs | I10: ='Tapered AA Calculations'!I10 -> 0 | K10: ='Tapered AA Calculations'!K10 -> 0 | M10: ='Tapered AA Calculations'!M10 -> 0 | P10: ='Tapered AA Calculations'!P10 -> 0 | R10: ='Tapered AA Calculations'!R10 -> 0 | T10: ='Tapered AA Calculations'!T10 -> 0 | W10: ='Tapered AA Calculations'!W10 -> 0 | Y10: ='Tapered AA Calculations'!Y10 -> 0 | AA10: ='Tapered AA Calculations'!AA10 -> 0 | AD10: ='Tapered AA Calculations'!AD10 -> 0 | AF10: ='Tapered AA Calculations'!AF10 -> 0 | AH10: ='Tapered AA Calculations'!AH10 -> 0 | AK10: ='Tapered AA Calculations'!AK10 -> 0 | AM10: ='Tapered AA Calculations'!AM10 -> 0 | AO10: ='Tapered AA Calculations'!AO10 -> 0 | AR10: ='Tapered AA Calculations'!AR10 -> 0 | AT10: ='Tapered AA Calculations'!AT10 -> 0 | AV10: ='Tapered AA Calculations'!AV10 -> 0 | AY10: ='Tapered AA Calculations'!AY10 -> 0 | BA10: ='Tapered AA Calculations'!BA10 -> 0 | BC10: ='Tapered AA Calculations'!BC10 -> 0 | BF10: ='Tapered AA Calculations'!BF10 -> 0 | BH10: ='Tapered AA Calculations'!BH10 -> 0 | BJ10: ='Tapered AA Calculations'!BJ10 -> 0 | BM10: ='Tapered AA Calculations'!BM10 -> 0 | BO10: ='Tapered AA Calculations'!BO10 -> 0 | BQ10: ='Tapered AA Calculations'!BQ10 -> 0 | BT10: ='Tapered AA Calculations'!BT10 -> 0 | BV10: ='Tapered AA Calculations'!BV10 -> 0 | BX10: ='Tapered AA Calculations'!BX10 -> 0 | CA10: ='Tapered AA Calculations'!CA10 -> 0 | CC10: ='Tapered AA Calculations'!CC10 -> 0 | CE10: ='Tapered AA Calculations'!CE10 -> 0
K11: ='Tapered AA Calculations'!K11 -> + | R11: ='Tapered AA Calculations'!R11 -> + | Y11: ='Tapered AA Calculations'!Y11 -> + | AF11: ='Tapered AA Calculations'!AF11 -> + | AM11: ='Tapered AA Calculations'!AM11 -> + | AT11: ='Tapered AA Calculations'!AT11 -> + | BA11: ='Tapered AA Calculations'!BA11 -> + | BH11: ='Tapered AA Calculations'!BH11 -> + | BO11: ='Tapered AA Calculations'!BO11 -> + | BV11: ='Tapered AA Calculations'!BV11 -> + | CC11: ='Tapered AA Calculations'!CC11 -> +
E12: ='Tapered AA Calculations'!E12 -> Net Pay Contributions | I12: ='Tapered AA Calculations'!I12 -> 0 | K12: ='Tapered AA Calculations'!K12 -> 0 | P12: ='Tapered AA Calculations'!P12 -> 0 | R12: ='Tapered AA Calculations'!R12 -> 0 | W12: ='Tapered AA Calculations'!W12 -> 0 | Y12: ='Tapered AA Calculations'!Y12 -> 0 | AD12: ='Tapered AA Calculations'!AD12 -> 0 | AF12: ='Tapered AA Calculations'!AF12 -> 0 | AK12: ='Tapered AA Calculations'!AK12 -> 0 | AM12: ='Tapered AA Calculations'!AM12 -> 0 | AR12: ='Tapered AA Calculations'!AR12 -> 0 | AT12: ='Tapered AA Calculations'!AT12 -> 0 | AY12: ='Tapered AA Calculations'!AY12 -> 0 | BA12: ='Tapered AA Calculations'!BA12 -> 0 | BF12: ='Tapered AA Calculations'!BF12 -> 0 | BH12: ='Tapered AA Calculations'!BH12 -> 0 | BM12: ='Tapered AA Calculations'!BM12 -> 0 | BO12: ='Tapered AA Calculations'!BO12 -> 0 | BT12: ='Tapered AA Calculations'!BT12 -> 0 | BV12: ='Tapered AA Calculations'!BV12 -> 0 | CA12: ='Tapered AA Calculations'!CA12 -> 0 | CC12: ='Tapered AA Calculations'!CC12 -> 0
E13: ='Tapered AA Calculations'!E13 -> (including any s226 contributions) | M13: ='Tapered AA Calculations'!M13 -> - | T13: ='Tapered AA Calculations'!T13 -> - | AA13: ='Tapered AA Calculations'!AA13 -> - | AH13: ='Tapered AA Calculations'!AH13 -> - | AO13: ='Tapered AA Calculations'!AO13 -> - | AV13: ='Tapered AA Calculations'!AV13 -> - | BC13: ='Tapered AA Calculations'!BC13 -> - | BJ13: ='Tapered AA Calculations'!BJ13 -> - | BQ13: ='Tapered AA Calculations'!BQ13 -> - | BX13: ='Tapered AA Calculations'!BX13 -> - | CE13: ='Tapered AA Calculations'!CE13 -> -
E15: ='Tapered AA Calculations'!E15 -> Relief at Source contributions (Gross) | I15: ='Tapered AA Calculations'!I15 -> 0 | K15: ='Tapered AA Calculations'!K15 -> 0 | M15: ='Tapered AA Calculations'!M15 -> 0 | P15: ='Tapered AA Calculations'!P15 -> 0 | R15: ='Tapered AA Calculations'!R15 -> 0 | T15: ='Tapered AA Calculations'!T15 -> 0 | W15: ='Tapered AA Calculations'!W15 -> 0 | Y15: ='Tapered AA Calculations'!Y15 -> 0 | AA15: ='Tapered AA Calculations'!AA15 -> 0 | AD15: ='Tapered AA Calculations'!AD15 -> 0 | AF15: ='Tapered AA Calculations'!AF15 -> 0 | AH15: ='Tapered AA Calculations'!AH15 -> 0 | AK15: ='Tapered AA Calculations'!AK15 -> 0 | AM15: ='Tapered AA Calculations'!AM15 -> 0 | AO15: ='Tapered AA Calculations'!AO15 -> 0 | AR15: ='Tapered AA Calculations'!AR15 -> 0 | AT15: ='Tapered AA Calculations'!AT15 -> 0 | AV15: ='Tapered AA Calculations'!AV15 -> 0 | AY15: ='Tapered AA Calculations'!AY15 -> 0 | BA15: ='Tapered AA Calculations'!BA15 -> 0 | BC15: ='Tapered AA Calculations'!BC15 -> 0 | BF15: ='Tapered AA Calculations'!BF15 -> 0 | BH15: ='Tapered AA Calculations'!BH15 -> 0 | BJ15: ='Tapered AA Calculations'!BJ15 -> 0 | BM15: ='Tapered AA Calculations'!BM15 -> 0 | BO15: ='Tapered AA Calculations'!BO15 -> 0 | BQ15: ='Tapered AA Calculations'!BQ15 -> 0 | BT15: ='Tapered AA Calculations'!BT15 -> 0 | BV15: ='Tapered AA Calculations'!BV15 -> 0 | BX15: ='Tapered AA Calculations'!BX15 -> 0 | CA15: ='Tapered AA Calculations'!CA15 -> 0 | CC15: ='Tapered AA Calculations'!CC15 -> 0 | CE15: ='Tapered AA Calculations'!CE15 -> 0
K16: ='Tapered AA Calculations'!K16 -> + | R16: ='Tapered AA Calculations'!R16 -> + | Y16: ='Tapered AA Calculations'!Y16 -> + | AF16: ='Tapered AA Calculations'!AF16 -> + | AM16: ='Tapered AA Calculations'!AM16 -> + | AT16: ='Tapered AA Calculations'!AT16 -> + | BA16: ='Tapered AA Calculations'!BA16 -> + | BH16: ='Tapered AA Calculations'!BH16 -> + | BO16: ='Tapered AA Calculations'!BO16 -> + | BV16: ='Tapered AA Calculations'!BV16 -> + | CC16: ='Tapered AA Calculations'!CC16 -> +
E17: ='Tapered AA Calculations'!E17 -> Value of employer pension contributions
E18: ='Tapered AA Calculations'!E18 -> Employer Penson Contributions to Money Purchase | I18: ='Tapered AA Calculations'!I18 -> 0 | K18: ='Tapered AA Calculations'!K18 -> 0 | P18: ='Tapered AA Calculations'!P18 -> 0 | R18: ='Tapered AA Calculations'!R18 -> 0 | W18: ='Tapered AA Calculations'!W18 -> 0 | Y18: ='Tapered AA Calculations'!Y18 -> 0 | AD18: ='Tapered AA Calculations'!AD18 -> 0 | AF18: ='Tapered AA Calculations'!AF18 -> 0 | AK18: ='Tapered AA Calculations'!AK18 -> 0 | AM18: ='Tapered AA Calculations'!AM18 -> 0 | AR18: ='Tapered AA Calculations'!AR18 -> 0 | AT18: ='Tapered AA Calculations'!AT18 -> 0 | AY18: ='Tapered AA Calculations'!AY18 -> 0 | BA18: ='Tapered AA Calculations'!BA18 -> 0 | BF18: ='Tapered AA Calculations'!BF18 -> 0 | BH18: ='Tapered AA Calculations'!BH18 -> 0 | BM18: ='Tapered AA Calculations'!BM18 -> 0 | BO18: ='Tapered AA Calculations'!BO18 -> 0 | BT18: ='Tapered AA Calculations'!BT18 -> 0 | BV18: ='Tapered AA Calculations'!BV18 -> 0 | CA18: ='Tapered AA Calculations'!CA18 -> 0 | CC18: ='Tapered AA Calculations'!CC18 -> 0
K19: ='Tapered AA Calculations'!K19 -> + | R19: ='Tapered AA Calculations'!R19 -> + | Y19: ='Tapered AA Calculations'!Y19 -> + | AF19: ='Tapered AA Calculations'!AF19 -> + | AM19: ='Tapered AA Calculations'!AM19 -> + | AT19: ='Tapered AA Calculations'!AT19 -> + | BA19: ='Tapered AA Calculations'!BA19 -> + | BH19: ='Tapered AA Calculations'!BH19 -> + | BO19: ='Tapered AA Calculations'!BO19 -> + | BV19: ='Tapered AA Calculations'!BV19 -> + | CC19: +
E20: ='Tapered AA Calculations'!E20 -> Total DB Pension Input Amount for year | I20: ='Tapered AA Calculations'!I20 -> 0 | K20: ='Tapered AA Calculations'!K20 -> 0 | P20: ='Tapered AA Calculations'!P20 -> 0 | R20: ='Tapered AA Calculations'!R20 -> 0 | W20: ='Tapered AA Calculations'!W20 -> 0 | Y20: ='Tapered AA Calculations'!Y20 -> 0 | AD20: ='Tapered AA Calculations'!AD20 -> 0 | AF20: ='Tapered AA Calculations'!AF20 -> 0 | AK20: ='Tapered AA Calculations'!AK20 -> 0 | AM20: ='Tapered AA Calculations'!AM20 -> 0 | AR20: ='Tapered AA Calculations'!AR20 -> 0 | AT20: ='Tapered AA Calculations'!AT20 -> 0 | AY20: ='Tapered AA Calculations'!AY20 -> 0 | BA20: ='Tapered AA Calculations'!BA20 -> 0 | BF20: ='Tapered AA Calculations'!BF20 -> 0 | BH20: ='Tapered AA Calculations'!BH20 -> 0 | BM20: ='Tapered AA Calculations'!BM20 -> 0 | BO20: ='Tapered AA Calculations'!BO20 -> 0 | BT20: ='Tapered AA Calculations'!BT20 -> 0 | BV20: ='Tapered AA Calculations'!BV20 -> 0 | CA20: ='Tapered AA Calculations'!CA20 -> 0 | CC20: ='Tapered AA Calculations'!CC20 -> 0
K21: ='Tapered AA Calculations'!K21 -> - | R21: ='Tapered AA Calculations'!R21 -> - | Y21: ='Tapered AA Calculations'!Y21 -> - | AF21: ='Tapered AA Calculations'!AF21 -> - | AM21: ='Tapered AA Calculations'!AM21 -> - | AT21: ='Tapered AA Calculations'!AT21 -> - | BA21: ='Tapered AA Calculations'!BA21 -> - | BH21: ='Tapered AA Calculations'!BH21 -> - | BO21: ='Tapered AA Calculations'!BO21 -> - | BV21: ='Tapered AA Calculations'!BV21 -> - | CC21: ='Tapered AA Calculations'!CC21 -> -
E22: ='Tapered AA Calculations'!E22 -> Total gross employee contribution to DB scheme(s) included above | I22: ='Tapered AA Calculations'!I22 -> 0 | K22: ='Tapered AA Calculations'!K22 -> 0 | P22: ='Tapered AA Calculations'!P22 -> 0 | R22: ='Tapered AA Calculations'!R22 -> 0 | W22: ='Tapered AA Calculations'!W22 -> 0 | Y22: ='Tapered AA Calculations'!Y22 -> 0 | AD22: ='Tapered AA Calculations'!AD22 -> 0 | AF22: ='Tapered AA Calculations'!AF22 -> 0 | AK22: ='Tapered AA Calculations'!AK22 -> 0 | AM22: ='Tapered AA Calculations'!AM22 -> 0 | AR22: ='Tapered AA Calculations'!AR22 -> 0 | AT22: ='Tapered AA Calculations'!AT22 -> 0 | AY22: ='Tapered AA Calculations'!AY22 -> 0 | BA22: ='Tapered AA Calculations'!BA22 -> 0 | BF22: ='Tapered AA Calculations'!BF22 -> 0 | BH22: ='Tapered AA Calculations'!BH22 -> 0 | BM22: ='Tapered AA Calculations'!BM22 -> 0 | BO22: ='Tapered AA Calculations'!BO22 -> 0 | BT22: ='Tapered AA Calculations'!BT22 -> 0 | BV22: ='Tapered AA Calculations'!BV22 -> 0 | CA22: ='Tapered AA Calculations'!CA22 -> 0 | CC22: ='Tapered AA Calculations'!CC22 -> 0
M24: ='Tapered AA Calculations'!M24 -> + | T24: ='Tapered AA Calculations'!T24 -> + | AA24: ='Tapered AA Calculations'!AA24 -> + | AH24: ='Tapered AA Calculations'!AH24 -> + | AO24: ='Tapered AA Calculations'!AO24 -> + | AV24: ='Tapered AA Calculations'!AV24 -> + | BC24: ='Tapered AA Calculations'!BC24 -> + | BJ24: ='Tapered AA Calculations'!BJ24 -> + | BQ24: ='Tapered AA Calculations'!BQ24 -> + | BX24: ='Tapered AA Calculations'!BX24 -> + | CE24: ='Tapered AA Calculations'!CE24 -> +
E25: ='Tapered AA Calculations'!E25 -> Employment income given up for pension contributions post 09/07/15 | I25: ='Tapered AA Calculations'!I25 -> 0 | K25: ='Tapered AA Calculations'!K25 -> 0 | M25: ='Tapered AA Calculations'!M25 -> 0 | P25: ='Tapered AA Calculations'!P25 -> 0 | R25: ='Tapered AA Calculations'!R25 -> 0 | T25: ='Tapered AA Calculations'!T25 -> 0 | W25: ='Tapered AA Calculations'!W25 -> 0 | Y25: ='Tapered AA Calculations'!Y25 -> 0 | AA25: ='Tapered AA Calculations'!AA25 -> 0 | AD25: ='Tapered AA Calculations'!AD25 -> 0 | AF25: ='Tapered AA Calculations'!AF25 -> 0 | AH25: ='Tapered AA Calculations'!AH25 -> 0 | AK25: ='Tapered AA Calculations'!AK25 -> 0 | AM25: ='Tapered AA Calculations'!AM25 -> 0 | AO25: ='Tapered AA Calculations'!AO25 -> 0 | AR25: ='Tapered AA Calculations'!AR25 -> 0 | AT25: ='Tapered AA Calculations'!AT25 -> 0 | AV25: ='Tapered AA Calculations'!AV25 -> 0 | AY25: ='Tapered AA Calculations'!AY25 -> 0 | BA25: ='Tapered AA Calculations'!BA25 -> 0 | BC25: ='Tapered AA Calculations'!BC25 -> 0 | BF25: ='Tapered AA Calculations'!BF25 -> 0 | BH25: ='Tapered AA Calculations'!BH25 -> 0 | BJ25: ='Tapered AA Calculations'!BJ25 -> 0 | BM25: ='Tapered AA Calculations'!BM25 -> 0 | BO25: ='Tapered AA Calculations'!BO25 -> 0 | BQ25: ='Tapered AA Calculations'!BQ25 -> 0 | BT25: ='Tapered AA Calculations'!BT25 -> 0 | BV25: ='Tapered AA Calculations'!BV25 -> 0 | BX25: ='Tapered AA Calculations'!BX25 -> 0 | CA25: ='Tapered AA Calculations'!CA25 -> 0 | CC25: ='Tapered AA Calculations'!CC25 -> 0 | CE25: ='Tapered AA Calculations'!CE25 -> 0
K26: ='Tapered AA Calculations'!K26 -> - | M26: ='Tapered AA Calculations'!M26 -> - | R26: ='Tapered AA Calculations'!R26 -> - | T26: ='Tapered AA Calculations'!T26 -> - | Y26: ='Tapered AA Calculations'!Y26 -> - | AA26: ='Tapered AA Calculations'!AA26 -> - | AF26: ='Tapered AA Calculations'!AF26 -> - | AH26: ='Tapered AA Calculations'!AH26 -> - | AM26: ='Tapered AA Calculations'!AM26 -> - | AO26: ='Tapered AA Calculations'!AO26 -> - | AT26: ='Tapered AA Calculations'!AT26 -> - | AV26: ='Tapered AA Calculations'!AV26 -> - | BA26: ='Tapered AA Calculations'!BA26 -> - | BC26: ='Tapered AA Calculations'!BC26 -> - | BH26: ='Tapered AA Calculations'!BH26 -> - | BJ26: ='Tapered AA Calculations'!BJ26 -> - | BO26: ='Tapered AA Calculations'!BO26 -> - | BQ26: ='Tapered AA Calculations'!BQ26 -> - | BV26: ='Tapered AA Calculations'!BV26 -> - | BX26: ='Tapered AA Calculations'!BX26 -> - | CC26: ='Tapered AA Calculations'!CC26 -> - | CE26: ='Tapered AA Calculations'!CE26 -> -
E28: ='Tapered AA Calculations'!E28 -> Taxable Lump Sum Death Benefits (Gross Value) | I28: ='Tapered AA Calculations'!I28 -> 0 | K28: ='Tapered AA Calculations'!K28 -> 0 | M28: ='Tapered AA Calculations'!M28 -> 0 | P28: ='Tapered AA Calculations'!P28 -> 0 | R28: ='Tapered AA Calculations'!R28 -> 0 | T28: ='Tapered AA Calculations'!T28 -> 0 | W28: ='Tapered AA Calculations'!W28 -> 0 | Y28: ='Tapered AA Calculations'!Y28 -> 0 | AA28: ='Tapered AA Calculations'!AA28 -> 0 | AD28: ='Tapered AA Calculations'!AD28 -> 0 | AF28: ='Tapered AA Calculations'!AF28 -> 0 | AH28: ='Tapered AA Calculations'!AH28 -> 0 | AK28: ='Tapered AA Calculations'!AK28 -> 0 | AM28: ='Tapered AA Calculations'!AM28 -> 0 | AO28: ='Tapered AA Calculations'!AO28 -> 0 | AR28: ='Tapered AA Calculations'!AR28 -> 0 | AT28: ='Tapered AA Calculations'!AT28 -> 0 | AV28: ='Tapered AA Calculations'!AV28 -> 0 | AY28: ='Tapered AA Calculations'!AY28 -> 0 | BA28: ='Tapered AA Calculations'!BA28 -> 0 | BC28: ='Tapered AA Calculations'!BC28 -> 0 | BF28: ='Tapered AA Calculations'!BF28 -> 0 | BH28: ='Tapered AA Calculations'!BH28 -> 0 | BJ28: ='Tapered AA Calculations'!BJ28 -> 0 | BM28: ='Tapered AA Calculations'!BM28 -> 0 | BO28: ='Tapered AA Calculations'!BO28 -> 0 | BQ28: ='Tapered AA Calculations'!BQ28 -> 0 | BT28: ='Tapered AA Calculations'!BT28 -> 0 | BV28: ='Tapered AA Calculations'!BV28 -> 0 | BX28: ='Tapered AA Calculations'!BX28 -> 0 | CA28: ='Tapered AA Calculations'!CA28 -> 0 | CC28: ='Tapered AA Calculations'!CC28 -> 0 | CE28: ='Tapered AA Calculations'!CE28 -> 0
E30: ='Tapered AA Calculations'!E30 -> Warning, once you have calculated the remaining AA for the member be aware that any further contributions may change the tapered calculation. For instance if the employer is planning to contribute the remaining AA for a member, the contribution they can make will be two thirds of the remaining AA that has been calculated. | I30: Totals | K30: ='Tapered AA Calculations'!K30 -> 0 | M30: ='Tapered AA Calculations'!M30 -> 0 | P30: Totals | R30: ='Tapered AA Calculations'!R30 -> 0 | T30: ='Tapered AA Calculations'!T30 -> 0 | W30: Totals | Y30: ='Tapered AA Calculations'!Y30 -> 0 | AA30: ='Tapered AA Calculations'!AA30 -> 0 | AD30: Totals | AF30: ='Tapered AA Calculations'!AF30 -> 0 | AH30: ='Tapered AA Calculations'!AH30 -> 0 | AM30: ='Tapered AA Calculations'!AM30 -> 0 | AO30: ='Tapered AA Calculations'!AO30 -> 0 | AR30: Totals | AT30: ='Tapered AA Calculations'!AT30 -> 0 | AV30: ='Tapered AA Calculations'!AV30 -> 0 | AY30: Totals | BA30: ='Tapered AA Calculations'!BA30 -> 0 | BC30: ='Tapered AA Calculations'!BC30 -> 0 | BF30: Totals | BH30: ='Tapered AA Calculations'!BH30 -> 0 | BJ30: ='Tapered AA Calculations'!BJ30 -> 0 | BM30: Totals | BO30: ='Tapered AA Calculations'!BO30 -> 0 | BQ30: ='Tapered AA Calculations'!BQ30 -> 0 | BT30: Totals | BV30: ='Tapered AA Calculations'!BV30 -> 0 | BX30: ='Tapered AA Calculations'!BX30 -> 0 | CA30: Totals | CC30: ='Tapered AA Calculations'!CE30 -> 0 | CE30: ='Tapered AA Calculations'!CE30 -> 0
I32: Limit breached? | K32: ='Tapered AA Calculations'!K32 -> No | M32: ='Tapered AA Calculations'!M32 -> No | P32: Limit breached? | R32: ='Tapered AA Calculations'!R32 -> No | T32: ='Tapered AA Calculations'!T32 -> No | W32: Limit breached? | Y32: ='Tapered AA Calculations'!Y32 -> No | AA32: ='Tapered AA Calculations'!AA32 -> No | AD32: Limit breached? | AF32: ='Tapered AA Calculations'!AF32 -> No | AH32: ='Tapered AA Calculations'!AH32 -> No | AM32: ='Tapered AA Calculations'!AM32 -> No | AO32: ='Tapered AA Calculations'!AO32 -> No | AR32: Limit breached? | AT32: ='Tapered AA Calculations'!AT32 -> No | AV32: ='Tapered AA Calculations'!AV32 -> No | AY32: Limit breached? | BA32: ='Tapered AA Calculations'!BA32 -> No | BC32: ='Tapered AA Calculations'!BC32 -> No | BF32: Limit breached? | BH32: ='Tapered AA Calculations'!BH32 -> No | BJ32: ='Tapered AA Calculations'!BJ32 -> No | BM32: Limit breached? | BO32: ='Tapered AA Calculations'!BO32 -> No | BQ32: ='Tapered AA Calculations'!BQ32 -> No | BT32: Limit breached? | BV32: ='Tapered AA Calculations'!BV32 -> No | BX32: ='Tapered AA Calculations'!BX32 -> No | CA32: Limit breached? | CC32: ='Tapered AA Calculations'!CE32 -> No | CE32: ='Tapered AA Calculations'!CE32 -> No
I34: ='Tapered AA Calculations'!I34 -> Is the Taper Triggered? | L34: ='Tapered AA Calculations'!L34 -> No | P34: ='Tapered AA Calculations'!P34 -> Is the Taper Triggered? | S34: ='Tapered AA Calculations'!S34 -> No | W34: ='Tapered AA Calculations'!W34 -> Is the Taper Triggered? | Z34: ='Tapered AA Calculations'!Z34 -> No | AD34: ='Tapered AA Calculations'!AD34 -> Is the Taper Triggered? | AG34: ='Tapered AA Calculations'!AG34 -> No | AK34: ='Tapered AA Calculations'!AK34 -> Is the Taper Triggered? | AN34: ='Tapered AA Calculations'!AN34 -> No | AR34: ='Tapered AA Calculations'!AR34 -> Is the Taper Triggered? | AU34: ='Tapered AA Calculations'!AU34 -> No | AY34: ='Tapered AA Calculations'!AY34 -> Is the Taper Triggered? | BB34: ='Tapered AA Calculations'!BB34 -> No | BF34: ='Tapered AA Calculations'!BF34 -> Is the Taper Triggered? | BI34: ='Tapered AA Calculations'!BI34 -> No | BM34: ='Tapered AA Calculations'!BM34 -> Is the Taper Triggered? | BP34: ='Tapered AA Calculations'!BP34 -> No | BT34: ='Tapered AA Calculations'!BT34 -> Is the Taper Triggered? | BW34: ='Tapered AA Calculations'!BW34 -> No | CA34: ='Tapered AA Calculations'!CA34 -> Is the Taper Triggered? | CD34: ='Tapered AA Calculations'!CE34 -> 0
I35: ='Tapered AA Calculations'!I35 -> Annual Allowance for 2016/17 | L35: ='Tapered AA Calculations'!L35 -> 40000 | P35: ='Tapered AA Calculations'!P35 -> Annual Allowance for 2017/18 | S35: ='Tapered AA Calculations'!S35 -> 40000 | W35: ='Tapered AA Calculations'!W35 -> Annual Allowance for 2018/19 | Z35: ='Tapered AA Calculations'!Z35 -> 40000 | AD35: ='Tapered AA Calculations'!AD35 -> Annual Allowance for 2019/20 | AG35: ='Tapered AA Calculations'!AG35 -> 40000 | AK35: ='Tapered AA Calculations'!AK35 -> Annual Allowance for 2020/21 | AN35: ='Tapered AA Calculations'!AN35 -> 40000 | AR35: ='Tapered AA Calculations'!AR35 -> Annual Allowance for 2021/22 | AU35: ='Tapered AA Calculations'!AU35 -> 40000 | AY35: ='Tapered AA Calculations'!AY35 -> Annual Allowance for 2022/23 | BB35: ='Tapered AA Calculations'!BB35 -> 40000 | BF35: ='Tapered AA Calculations'!BF35 -> Annual Allowance for 2023/24 | BI35: ='Tapered AA Calculations'!BI35 -> 60000 | BM35: ='Tapered AA Calculations'!BM35 -> Annual Allowance for 2024/25 | BP35: ='Tapered AA Calculations'!BP35 -> 60000 | BT35: ='Tapered AA Calculations'!BT35 -> Annual Allowance for 2025/26 | BW35: ='Tapered AA Calculations'!BW35 -> 60000 | CA35: ='Tapered AA Calculations'!CA35 -> Annual Allowance for 2026/27 | CD35: ='Tapered AA Calculations'!CE35 -> 0
K42: Total Inputs | M42: =I7+I10+I12+I15+I18+I20+I22+I25+I28 -> 0 | R42: Total Inputs | T42: =P7+P10+P12+P15+P18+P20+P22+P25+P28 -> 0 | Y42: Total Inputs | AA42: =W7+W10+W12+W15+W18+W20+W22+W25+W28 -> 0 | AF42: Total Inputs | AH42: =AD7+AD10+AD12+AD15+AD18+AD20+AD22+AD25+AD28 -> 0 | AM42: Total Inputs | AO42: =AK7+AK10+AK12+AK15+AK18+AK20+AK22+AK25+AK28 -> 0 | AT42: Total Inputs | AV42: =AR7+AR10+AR12+AR15+AR18+AR20+AR22+AR25+AR28 -> 0 | BA42: Total Inputs | BC42: =AY7+AY10+AY12+AY15+AY18+AY20+AY22+AY25+AY28 -> 0 | BH42: Total Inputs | BJ42: =BF7+BF10+BF12+BF15+BF18+BF20+BF22+BF25+BF28 -> 0 | BO42: Total Inputs | BQ42: =BM7+BM10+BM12+BM15+BM18+BM20+BM22+BM25+BM28 -> 0
K43: AA Input | M43: =(I12-I22)+I15+I18+I20 -> 0 | R43: AA Input | T43: =(P12-P22)+P15+P18+P20 -> 0 | Y43: AA Input | AA43: =(W12-W22)+W15+W18+W20 -> 0 | AF43: AA Input | AH43: =(AD12-AD22)+AD15+AD18+AD20 -> 0 | AM43: AA Input | AO43: =(AK12-AK22)+AK15+AK18+AK20 -> 0 | AT43: AA Input | AV43: =(AR12-AR22)+AR15+AR18+AR20 -> 0 | BA43: AA Input | BC43: =(AY12-AY22)+AY15+AY18+AY20 -> 0 | BH43: AA Input | BJ43: =(BF12-BF22)+BF15+BF18+BF20 -> 0 | BO43: AA Input | BQ43: =(BM12-BM22)+BM15+BM18+BM20 -> 0
